Workbook

Sheet IB-2
A9: 2024年度财政总决算报表

Sheet ML
B1: 财 政 总 决 算 报 表 目 录
B3: 表号 | C3: 表名 | D3: 页码
B5: 决算01表 | C5: 一般公共预算收支决算总表 | E5: 第一部分:一般公共预算
B6: 决算02表 | C6: 一般公共预算收入预算变动情况表
B7: 决算03表 | C7: 一般公共预算支出预算变动及结余、结转情况表
B8: 决算04表 | C8: 一般公共预算收入决算明细表
B9: 决算05表 | C9: 一般公共预算支出决算功能分类明细表
B10: 决算06表 | C10: 一般公共预算支出决算经济分类明细表
B11: 决算07表 | C11: 一般公共预算转移性和债务相关收支决算明细表
B12: 决算08表 | C12: 一般公共预算收支决算分级表
B13: 决算09表 | C13: 民族自治地方一般公共预算收支决算表
B14: 决算10表 | C14: 一般公共预算收支及平衡情况表
B16: 决算11表 | C16: 政府性基金预算收支决算总表 | E16: 第二部分:政府性基金预算
B17: 决算12表 | C17: 政府性基金预算收入预算变动情况表
B18: 决算13表 | C18: 政府性基金预算支出预算变动情况表
B19: 决算14表 | C19: 政府性基金预算收入决算明细表
B20: 决算15表 | C20: 政府性基金预算支出决算功能分类明细表
B21: 决算16表 | C21: 政府性基金预算收支及结余情况表
B22: 决算17表 | C22: 政府性基金预算收支决算分级表
B23: 决算18表 | C23: 政府性基金预算收支及平衡情况表
B25: 决算19表 | C25: 国有资本经营预算收支决算总表 | E25: 第三部分:国有资本经营预算
B26: 决算20表 | C26: 国有资本经营预算收支决算明细表
B27: 决算21表 | C27: 国有资本经营预算收支决算分级表
B28: 决算22表 | C28: 国有资本经营预算收支及平衡情况表
B30: 决算23表 | C30: 社会保险基金预算收支情况表 | E30: 第四部分:补充资料
B31: 决算24表 | C31: 地方政府债务余额情况表
B32: 决算25表 | C32: 脱贫县相关财政指标表
B33: 决算26表 | C33: 乡镇财政收支决算表

Sheet sheet01
A9: 第一部分:一般公共预算

Sheet J01
A1: 2024年度鄄城县一般公共预算收支决算总表
A2: 决算01表
A3: 单位:万元
A4: 预算科目 | B4: 预算数 | C4: 调整预算数 | D4: 决算数 | E4: 预算科目 | F4: 预算数 | G4: 调整预算数 | H4: 决算数
A5: 一、税收收入 | B5: 143,900 | C5: 110,207 | D5: 110,450 | E5: 一、一般公共服务支出 | F5: 52,510 | G5: 52,800 | H5: 52,728
A6: 增值税 | B6: 52,600 | C6: 43,797 | D6: 43,892 | E6: 二、外交支出
A7: 企业所得税 | B7: 9,700 | C7: 8,113 | D7: 8,121 | E7: 三、国防支出 | F7: 110 | G7: 155 | H7: 155
A8: 个人所得税 | B8: 2,750 | C8: 1,420 | D8: 1,421 | E8: 四、公共安全支出 | F8: 15,217 | G8: 13,673 | H8: 12,967
A9: 资源税 | B9: 4,850 | C9: 2,108 | D9: 2,108 | E9: 五、教育支出 | F9: 128,615 | G9: 136,139 | H9: 127,666
A10: 城市维护建设税 | B10: 6,550 | C10: 3,990 | D10: 3,994 | E10: 六、科学技术支出 | F10: 1,902 | G10: 2,017 | H10: 1,987
A11: 房产税 | B11: 4,450 | C11: 4,807 | D11: 4,887 | E11: 七、文化旅游体育与传媒支出 | F11: 3,705 | G11: 3,474 | H11: 2,946
A12: 印花税 | B12: 2,700 | C12: 2,061 | D12: 2,063 | E12: 八、社会保障和就业支出 | F12: 159,334 | G12: 141,197 | H12: 138,191
A13: 城镇土地使用税 | B13: 32,500 | C13: 14,155 | D13: 14,124 | E13: 九、卫生健康支出 | F13: 46,090 | G13: 35,821 | H13: 31,986
A14: 土地增值税 | B14: 9,000 | C14: 3,725 | D14: 3,724 | E14: 十、节能环保支出 | F14: 8,613 | G14: 13,167 | H14: 11,374
A15: 车船税 | B15: 4,150 | C15: 3,608 | D15: 3,609 | E15: 十一、城乡社区支出 | F15: 14,309 | G15: 16,861 | H15: 14,396
A16: 耕地占用税 | B16: 4,700 | C16: 13,030 | D16: 13,030 | E16: 十二、农林水支出 | F16: 55,622 | G16: 78,347 | H16: 59,898
A17: 契税 | B17: 8,850 | C17: 8,978 | D17: 9,059 | E17: 十三、交通运输支出 | F17: 6,442 | G17: 14,802 | H17: 13,855
A18: 烟叶税 | E18: 十四、资源勘探工业信息等支出 | F18: 804 | G18: 1,142 | H18: 1,117
A19: 环境保护税 | B19: 1,100 | C19: 415 | D19: 418 | E19: 十五、商业服务业等支出 | F19: 104 | G19: 348 | H19: 127
A20: 其他税收收入 | E20: 十六、金融支出 | F20: 214 | G20: 5
A21: 二、非税收入 | B21: 43,588 | C21: 71,148 | D21: 71,171 | E21: 十七、援助其他地区支出 | F21: 153 | G21: 153 | H21: 153
A22: 专项收入 | B22: 6,050 | C22: 20,337 | D22: 20,347 | E22: 十八、自然资源海洋气象等支出 | F22: 6,706 | G22: 5,103 | H22: 4,459
A23: 行政事业性收费收入 | B23: 4,910 | C23: 8,494 | D23: 8,498 | E23: 十九、住房保障支出 | F23: 19,505 | G23: 27,733 | H23: 27,081
A24: 罚没收入 | B24: 10,925 | C24: 8,258 | D24: 8,285 | E24: 二十、粮油物资储备支出 | F24: 2,818 | G24: 2,301 | H24: 1,551
A25: 国有资本经营收入 | E25: 二十一、灾害防治及应急管理支出 | F25: 2,432 | G25: 3,540 | H25: 2,877
A26: 国有资源(资产)有偿使用收入 | B26: 21,383 | C26: 33,592 | D26: 33,574 | E26: 二十二、预备费 | F26: 5,330
A27: 其他收入 | B27: 320 | C27: 467 | D27: 467 | E27: 二十三、其他支出
E28: 二十四、债务付息支出 | F28: 2,465 | G28: 2,465 | H28: 2,465
E29: 二十五、债务发行费用支出
A40: 本 年 收 入 合 计 | B40: 187,488 | C40: 181,355 | D40: 181,621 | E40: 本 年 支 出 合 计 | F40: 533,000 | G40: 551,243 | H40: 507,979

Sheet J01-2
A1: 2024年度鄄城县一般公共预算收支决算总表
A2: 决算01表
A3: 单位:万元
A4: 项目 | B4: 决算数 | C4: 项目 | D4: 决算数
A5: 本 年 收 入 合 计 | B5: 181,621 | C5: 本 年 支 出 合 计 | D5: 507,979
A6: 上级补助收入 | B6: 337,202 | C6: 上解上级支出 | D6: 38,666
A7: 返还性收入 | B7: 12,578
A8: 一般性转移支付收入 | B8: 309,604
A9: 专项转移支付收入 | B9: 15,020
A10: 待偿债再融资一般债券上年结余
A11: 上年结余收入 | B11: 30,194
A12: 调入资金 | B12: 36,602 | C12: 调出资金
A13: 债务(转贷)收入 | B13: 7,630 | C13: 债务还本支出 | D13: 7,690
C14: 补充预算周转金
A15: 国债转贷收入、上年结余及转补助数 | C15: 国债转贷拨付数及年终结余
A16: 动用预算稳定调节基金 | B16: 47,163 | C16: 安排预算稳定调节基金 | D16: 42,813
A17: 区域间转移性收入 | C17: 区域间转移性支出
A18: 省补助计划单列市收入 | C18: 计划单列市上解省支出
C19: 待偿债再融资一般债券结余
C20: 年终结余 | D20: 43,264
C21: 减:结转下年的支出 | D21: 43,264
C22: 净结余
A73: 收 入 总 计 | B73: 640,412 | C73: 支 出 总 计 | D73: 640,412

Sheet J02
A1: 2024年度鄄城县一般公共预算收入预算变动情况表
A2: 决算02表
A3: 单位:万元
A4: 预算科目 | B4: 预算数 | C4: 变动项目 | G4: 调整预算数
C5: 上级专项调整数 | F5: 增加(减少)预算指标
C6: 小计 | D6: 企业上下划 | E6: 其他
A7: 一、税收收入 | B7: 143,900 | F7: -33,693 | G7: 110,207
A8: 增值税 | B8: 52,600 | F8: -8,803 | G8: 43,797
A9: 企业所得税 | B9: 9,700 | F9: -1,587 | G9: 8,113
A10: 个人所得税 | B10: 2,750 | F10: -1,330 | G10: 1,420
A11: 资源税 | B11: 4,850 | F11: -2,742 | G11: 2,108
A12: 城市维护建设税 | B12: 6,550 | F12: -2,560 | G12: 3,990
A13: 房产税 | B13: 4,450 | F13: 357 | G13: 4,807
A14: 印花税 | B14: 2,700 | F14: -639 | G14: 2,061
A15: 城镇土地使用税 | B15: 32,500 | F15: -18,345 | G15: 14,155
A16: 土地增值税 | B16: 9,000 | F16: -5,275 | G16: 3,725
A17: 车船税 | B17: 4,150 | F17: -542 | G17: 3,608
A18: 耕地占用税 | B18: 4,700 | F18: 8,330 | G18: 13,030
A19: 契税 | B19: 8,850 | F19: 128 | G19: 8,978
A20: 烟叶税
A21: 环境保护税 | B21: 1,100 | F21: -685 | G21: 415
A22: 其他税收收入
A23: 二、非税收入 | B23: 43,588 | F23: 27,560 | G23: 71,148
A24: 专项收入 | B24: 6,050 | F24: 14,287 | G24: 20,337
A25: 行政事业性收费收入 | B25: 4,910 | F25: 3,584 | G25: 8,494
A26: 罚没收入 | B26: 10,925 | F26: -2,667 | G26: 8,258
A27: 国有资本经营收入
A28: 国有资源(资产)有偿使用收入 | B28: 21,383 | F28: 12,209 | G28: 33,592
A29: 其他收入 | B29: 320 | F29: 147 | G29: 467
A39: 合 计 | B39: 187,488 | F39: -6,133 | G39: 181,355

Sheet J03
A1: 2024年度鄄城县一般公共预算支出预算变动及结余、结转情况表
A2: 决算03表
A3: 单位:万元
A4: 预算科目 | B4: 预算数 | C4: 变 动 项 目 | Q4: 调整预算数 | R4: 决算数 | S4: 预算结余 | T4: 结转下年使用数
C5: 小计 | D5: 返还性收入 | E5: 一般性转移支付 | F5: 专项转移支付 | G5: 上年结转使用数 | H5: 调入资金 | I5: 债务(转贷)收入 | J5: 动支预备费 | K5: 科目调剂 | L5: 本年短收安排 | M5: 动用预算稳定调节基金 | N5: 安排预算稳定调节基金 | O5: 省补助计划单列市 | P5: 其他
A6: 一般公共服务支出 | B6: 52,510 | C6: 290 | F6: 175 | K6: 115 | Q6: 52,800 | R6: 52,728 | S6: 72 | T6: 72
A7: 人大事务 | B7: 592 | C7: 34 | K7: 34 | Q7: 626 | R7: 626
A8: 政协事务 | B8: 495 | C8: -19 | K8: -19 | Q8: 476 | R8: 476
A9: 政府办公厅(室)及相关机构事务 | B9: 31,172 | C9: 2,155 | K9: 2,155 | Q9: 33,327 | R9: 33,327
A10: 发展与改革事务 | B10: 1,200 | C10: 128 | K10: 128 | Q10: 1,328 | R10: 1,328
A11: 统计信息事务 | B11: 425 | C11: 14 | F11: 52 | K11: -38 | Q11: 439 | R11: 388 | S11: 51 | T11: 51
A12: 财政事务 | B12: 2,222 | C12: -357 | K12: -357 | Q12: 1,865 | R12: 1,865
A13: 税收事务 | B13: 3,014 | C13: -264 | K13: -264 | Q13: 2,750 | R13: 2,750
A14: 审计事务 | B14: 605 | C14: -71 | K14: -71 | Q14: 534 | R14: 534
A15: 海关事务
A16: 纪检监察事务 | B16: 2,062 | C16: -185 | K16: -185 | Q16: 1,877 | R16: 1,877
A17: 商贸事务 | B17: 990 | C17: -25 | K17: -25 | Q17: 965 | R17: 965
A18: 知识产权事务 | C18: 4 | F18: 4 | Q18: 4 | S18: 4 | T18: 4
A19: 民族事务 | B19: 56 | C19: -15 | K19: -15 | Q19: 41 | R19: 41
A20: 港澳台事务
A21: 档案事务 | B21: 209 | C21: -18 | K21: -18 | Q21: 191 | R21: 191
A22: 民主党派及工商联事务 | B22: 52 | C22: -16 | K22: -16 | Q22: 36 | R22: 36
A23: 群众团体事务 | B23: 363 | C23: 41 | F23: 49 | K23: -8 | Q23: 404 | R23: 395 | S23: 9 | T23: 9
A24: 党委办公厅(室)及相关机构事务 | B24: 2,057 | C24: -517 | K24: -517 | Q24: 1,540 | R24: 1,540
A25: 组织事务 | B25: 818 | C25: -107 | F25: 66 | K25: -173 | Q25: 711 | R25: 703 | S25: 8 | T25: 8
A26: 宣传事务 | B26: 678 | C26: 95 | K26: 95 | Q26: 773 | R26: 773
A27: 统战事务 | B27: 201 | C27: -45 | K27: -45 | Q27: 156 | R27: 156
A28: 对外联络事务
A29: 其他共产党事务支出
A30: 网信事务
A31: 市场监督管理事务 | B31: 5,231 | C31: -621 | F31: 4 | K31: -625 | Q31: 4,610 | R31: 4,610
A32: 社会工作事务 | C32: 64 | K32: 64 | Q32: 64 | R32: 64
A33: 信访事务 | B33: 53 | C33: 15 | K33: 15 | Q33: 68 | R33: 68
A34: 其他一般公共服务支出 | B34: 15 | Q34: 15 | R34: 15
A35: 外交支出
A36: 国防支出 | B36: 110 | C36: 45 | F36: 5 | K36: 40 | Q36: 155 | R36: 155
A37: 公共安全支出 | B37: 15,217 | C37: -1,544 | F37: 24 | K37: -1,568 | Q37: 13,673 | R37: 12,967 | S37: 706 | T37: 706
A38: 武装警察部队
A39: 公安 | B39: 14,215 | C39: -1,687 | F39: 24 | K39: -1,711 | Q39: 12,528 | R39: 12,045 | S39: 483 | T39: 483
A40: 国家安全
A41: 检察 | B41: 54 | C41: 146 | K41: 146 | Q41: 200 | R41: 200
A42: 法院 | C42: 100 | K42: 100 | Q42: 100 | R42: 100
A43: 司法 | B43: 948 | C43: -103 | K43: -103 | Q43: 845 | R43: 622 | S43: 223 | T43: 223
A44: 监狱
A45: 强制隔离戒毒
A46: 国家保密
A47: 缉私警察
A48: 其他公共安全支出
A49: 教育支出 | B49: 128,615 | C49: 7,524 | F49: 104 | K49: -815 | P49: 8,235 | Q49: 136,139 | R49: 127,666 | S49: 8,473 | T49: 8,473
A50: 教育管理事务 | B50: 1,605 | C50: -177 | K50: -177 | Q50: 1,428 | R50: 1,428
A51: 普通教育 | B51: 113,127 | C51: 9,655 | F51: 4 | K51: -231 | P51: 9,882 | Q51: 122,782 | R51: 115,774 | S51: 7,008 | T51: 7,008
A52: 职业教育 | B52: 6,957 | C52: -268 | F52: 100 | K52: -368 | Q52: 6,689 | R52: 5,313 | S52: 1,376 | T52: 1,376
A53: 成人教育
A54: 广播电视教育
A55: 留学教育
A56: 特殊教育 | B56: 539 | C56: -16 | K56: -16 | Q56: 523 | R56: 434 | S56: 89 | T56: 89
A57: 进修及培训 | B57: 1,127 | C57: -23 | K57: -23 | Q57: 1,104 | R57: 1,104
A58: 教育费附加安排的支出 | B58: 5,260 | C58: -1,647 | P58: -1,647 | Q58: 3,613 | R58: 3,613
A59: 其他教育支出
A60: 科学技术支出 | B60: 1,902 | C60: 115 | F60: 30 | K60: 85 | Q60: 2,017 | R60: 1,987 | S60: 30 | T60: 30
A61: 科学技术管理事务 | B61: 202 | C61: 20 | F61: -160 | K61: 180 | Q61: 222 | R61: 222
A62: 基础研究
A63: 应用研究
A64: 技术研究与开发 | B64: 1,160 | C64: 610 | F64: 180 | K64: 430 | Q64: 1,770 | R64: 1,740 | S64: 30 | T64: 30
A65: 科技条件与服务
A66: 社会科学 | B66: 15 | Q66: 15 | R66: 15
A67: 科学技术普及 | B67: 15 | C67: -5 | F67: 10 | K67: -15 | Q67: 10 | R67: 10
A68: 科技交流与合作
A69: 科技重大项目
A70: 其他科学技术支出 | B70: 510 | C70: -510 | K70: -510
A71: 文化旅游体育与传媒支出 | B71: 3,705 | C71: -231 | F71: 32 | K71: -263 | Q71: 3,474 | R71: 2,946 | S71: 528 | T71: 528
A72: 文化和旅游 | B72: 2,234 | C72: -323 | F72: 20 | K72: -343 | Q72: 1,911 | R72: 1,653 | S72: 258 | T72: 258
A73: 文物 | B73: 190 | C73: 63 | K73: 63 | Q73: 253 | R73: 8 | S73: 245 | T73: 245
A74: 体育
A75: 新闻出版电影
A76: 广播电视 | B76: 1,192 | C76: 89 | F76: 12 | K76: 77 | Q76: 1,281 | R76: 1,269 | S76: 12 | T76: 12
A77: 其他文化旅游体育与传媒支出 | B77: 89 | C77: -60 | K77: -60 | Q77: 29 | R77: 16 | S77: 13 | T77: 13
A78: 社会保障和就业支出 | B78: 159,334 | C78: -18,137 | F78: 165 | K78: -18,302 | Q78: 141,197 | R78: 138,191 | S78: 3,006 | T78: 3,006
A79: 人力资源和社会保障管理事务 | B79: 3,045 | C79: -130 | K79: -130 | Q79: 2,915 | R79: 2,915
A80: 民政管理事务 | B80: 742 | C80: -26 | F80: 2 | K80: -28 | Q80: 716 | R80: 714 | S80: 2 | T80: 2
A81: 行政事业单位养老支出 | B81: 73,122 | C81: -9,812 | K81: -9,812 | Q81: 63,310 | R81: 63,310
A82: 企业改革补助
A83: 就业补助 | B83: 12,793 | C83: -4,457 | K83: -4,457 | Q83: 8,336 | R83: 6,050 | S83: 2,286 | T83: 2,286
A84: 抚恤 | B84: 9,373 | C84: -1,681 | K84: -1,681 | Q84: 7,692 | R84: 7,429 | S84: 263 | T84: 263
A85: 退役安置 | B85: 1,861 | C85: -567 | K85: -567 | Q85: 1,294 | R85: 1,155 | S85: 139 | T85: 139
A86: 社会福利 | B86: 2,631 | C86: -244 | K86: -244 | Q86: 2,387 | R86: 2,387
A87: 残疾人事业 | B87: 3,712 | C87: -311 | K87: -311 | Q87: 3,401 | R87: 3,202 | S87: 199 | T87: 199
A88: 红十字事业
A89: 最低生活保障 | B89: 7,547 | C89: 568 | K89: 568 | Q89: 8,115 | R89: 8,038 | S89: 77 | T89: 77
A90: 临时救助 | B90: 312 | C90: -69 | K90: -69 | Q90: 243 | R90: 241 | S90: 2 | T90: 2
A91: 特困人员救助供养 | B91: 5,717 | C91: 1,704 | K91: 1,704 | Q91: 7,421 | R91: 7,419 | S91: 2 | T91: 2
A92: 补充道路交通事故社会救助基金
A93: 其他生活救助 | B93: 12 | C93: 1,019 | F93: 163 | K93: 856 | Q93: 1,031 | R93: 1,031
A94: 财政对基本养老保险基金的补助 | B94: 35,986 | C94: -3,261 | K94: -3,261 | Q94: 32,725 | R94: 32,725
A95: 财政对其他社会保险基金的补助
A96: 退役军人管理事务 | B96: 299 | C96: -7 | K96: -7 | Q96: 292 | R96: 292
A97: 财政代缴社会保险费支出 | B97: 154 | C97: -28 | K97: -28 | Q97: 126 | R97: 126
A98: 其他社会保障和就业支出 | B98: 2,028 | C98: -835 | K98: -835 | Q98: 1,193 | R98: 1,157 | S98: 36 | T98: 36
A99: 卫生健康支出 | B99: 46,090 | C99: -10,269 | F99: 122 | K99: -10,391 | Q99: 35,821 | R99: 31,986 | S99: 3,835 | T99: 3,835
A100: 卫生健康管理事务 | B100: 1,770 | C100: -266 | K100: -266 | Q100: 1,504 | R100: 1,504
A101: 公立医院 | B101: 1,163 | C101: 430 | K101: 430 | Q101: 1,593 | R101: 1,413 | S101: 180 | T101: 180
A102: 基层医疗卫生机构 | B102: 4,885 | C102: -1,621 | K102: -1,621 | Q102: 3,264 | R102: 1,996 | S102: 1,268 | T102: 1,268
A103: 公共卫生 | B103: 12,530 | C103: -1,672 | F103: 121 | K103: -1,793 | Q103: 10,858 | R103: 9,945 | S103: 913 | T103: 913
A104: 计划生育事务 | B104: 5,752 | C104: -4,511 | K104: -4,511 | Q104: 1,241 | R104: 377 | S104: 864 | T104: 864
A105: 行政事业单位医疗 | B105: 11,204 | C105: -1,011 | K105: -1,011 | Q105: 10,193 | R105: 10,193
A106: 财政对基本医疗保险基金的补助 | B106: 5,006 | C106: -633 | K106: -633 | Q106: 4,373 | R106: 4,373
A107: 医疗救助 | B107: 2,376 | C107: -1,038 | K107: -1,038 | Q107: 1,338 | R107: 748 | S107: 590 | T107: 590
A108: 优抚对象医疗 | B108: 745 | C108: -264 | K108: -264 | Q108: 481 | R108: 481
A109: 医疗保障管理事务 | B109: 502 | C109: -14 | K109: -14 | Q109: 488 | R109: 488
A110: 老龄卫生健康事务 | B110: 73 | C110: -64 | K110: -64 | Q110: 9 | R110: 9
A111: 中医药事务 | C111: 376 | K111: 376 | Q111: 376 | R111: 376
A112: 疾病预防控制事务 | B112: 79 | Q112: 79 | R112: 79
A113: 其他卫生健康支出 | B113: 5 | C113: 19 | F113: 1 | K113: 18 | Q113: 24 | R113: 4 | S113: 20 | T113: 20
A114: 节能环保支出 | B114: 8,613 | C114: 4,554 | F114: 5,449 | K114: -895 | Q114: 13,167 | R114: 11,374 | S114: 1,793 | T114: 1,793
A115: 环境保护管理事务 | B115: 1,346 | C115: -153 | K115: -153 | Q115: 1,193 | R115: 1,193
A116: 环境监测与监察
A117: 污染防治 | B117: 5,767 | C117: 834 | F117: 2,339 | K117: -1,505 | Q117: 6,601 | R117: 6,551 | S117: 50 | T117: 50
A118: 自然生态保护 | C118: 1,197 | F118: 1,080 | K118: 117 | Q118: 1,197 | R118: 1,080 | S118: 117 | T118: 117
A119: 森林保护修复
A120: 风沙荒漠治理
A121: 退牧还草
A122: 已垦草原退耕还草
A123: 能源节约利用
A124: 污染减排 | C124: 2,146 | K124: 2,146 | Q124: 2,146 | R124: 2,000 | S124: 146 | T124: 146
A125: 可再生能源
A126: 循环经济
A127: 能源管理事务
A128: 其他节能环保支出 | B128: 1,500 | C128: 530 | F128: 2,030 | K128: -1,500 | Q128: 2,030 | R128: 550 | S128: 1,480 | T128: 1,480
A129: 城乡社区支出 | B129: 14,309 | C129: 2,552 | F129: 2,505 | K129: 47 | Q129: 16,861 | R129: 14,396 | S129: 2,465 | T129: 2,465
A130: 城乡社区管理事务 | B130: 6,002 | C130: -589 | K130: -589 | Q130: 5,413 | R130: 5,413
A131: 城乡社区规划与管理
A132: 城乡社区公共设施 | B132: 644 | C132: 2,796 | F132: 2,505 | K132: 291 | Q132: 3,440 | R132: 975 | S132: 2,465 | T132: 2,465
A133: 城乡社区环境卫生 | B133: 7,663 | C133: 345 | K133: 345 | Q133: 8,008 | R133: 8,008
A134: 建设市场管理与监督
A135: 其他城乡社区支出
A136: 农林水支出 | B136: 55,622 | C136: 22,725 | F136: 1,166 | K136: 4,530 | P136: 17,029 | Q136: 78,347 | R136: 59,898 | S136: 18,449 | T136: 18,449
A137: 农业农村 | B137: 29,003 | C137: 5,911 | F137: 170 | K137: -479 | P137: 6,220 | Q137: 34,914 | R137: 27,617 | S137: 7,297 | T137: 7,297
A138: 林业和草原 | B138: 1,001 | C138: 351 | K138: 351 | Q138: 1,352 | R138: 1,338 | S138: 14 | T138: 14
A139: 水利 | B139: 3,536 | C139: 613 | K139: 613 | Q139: 4,149 | R139: 4,149
A140: 巩固脱贫攻坚成果衔接乡村振兴 | B140: 5,787 | C140: 10,809 | P140: 10,809 | Q140: 16,596 | R140: 16,413 | S140: 183 | T140: 183
A141: 农村综合改革 | B141: 6,986 | C141: 3,239 | F141: 48 | K141: 3,191 | Q141: 10,225 | R141: 5,287 | S141: 4,938 | T141: 4,938
A142: 普惠金融发展支出 | B142: 8,949 | C142: 2,148 | F142: 948 | K142: 1,200 | Q142: 11,097 | R142: 5,080 | S142: 6,017 | T142: 6,017
A143: 目标价格补贴
A144: 其他农林水支出 | B144: 360 | C144: -346 | K144: -346 | Q144: 14 | R144: 14
A145: 交通运输支出 | B145: 6,442 | C145: 8,360 | F145: 530 | K145: 7,830 | Q145: 14,802 | R145: 13,855 | S145: 947 | T145: 947
A146: 公路水路运输 | B146: 4,082 | C146: 9,153 | F146: 530 | K146: 8,623 | Q146: 13,235 | R146: 12,288 | S146: 947 | T146: 947
A147: 铁路运输 | C147: 58 | K147: 58 | Q147: 58 | R147: 58
A148: 民用航空运输 | B148: 410 | Q148: 410 | R148: 410
A149: 邮政业支出
A150: 其他交通运输支出 | B150: 1,950 | C150: -851 | K150: -851 | Q150: 1,099 | R150: 1,099
A151: 资源勘探工业信息等支出 | B151: 804 | C151: 338 | F151: 391 | K151: -53 | Q151: 1,142 | R151: 1,117 | S151: 25 | T151: 25
A152: 资源勘探开发
A153: 制造业 | B153: 25 | C153: 176 | F153: 201 | K153: -25 | Q153: 201 | R153: 176 | S153: 25 | T153: 25
A154: 建筑业
A155: 工业和信息产业监管 | B155: 582 | C155: -28 | K155: -28 | Q155: 554 | R155: 554
A156: 国有资产监管
A157: 支持中小企业发展和管理支出 | B157: 197 | C157: 190 | F157: 190 | Q157: 387 | R157: 387
A158: 其他资源勘探工业信息等支出
A159: 商业服务业等支出 | B159: 104 | C159: 244 | F159: 264 | K159: -20 | Q159: 348 | R159: 127 | S159: 221 | T159: 221
A160: 商业流通事务 | B160: 98 | C160: 23 | F160: 43 | K160: -20 | Q160: 121 | R160: 121
A161: 涉外发展服务支出 | B161: 6 | C161: 21 | F161: 21 | Q161: 27 | R161: 6 | S161: 21 | T161: 21
A162: 其他商业服务业等支出 | C162: 200 | F162: 200 | Q162: 200 | S162: 200 | T162: 200
A163: 金融支出 | B163: 214 | C163: -209 | F163: 5 | K163: -214 | Q163: 5 | S163: 5 | T163: 5
A164: 金融部门行政支出
A165: 金融部门监管支出 | B165: 14 | C165: -14 | K165: -14
A166: 金融发展支出 | B166: 200 | C166: -200 | K166: -200
A167: 金融调控支出
A168: 其他金融支出 | C168: 5 | F168: 5 | Q168: 5 | S168: 5 | T168: 5
A169: 援助其他地区支出 | B169: 153 | Q169: 153 | R169: 153
A170: 一般公共服务
A171: 教育
A172: 文化旅游体育与传媒
A173: 卫生健康
A174: 节能环保
A175: 农业农村
A176: 交通运输
A177: 住房保障
A178: 其他支出 | B178: 153 | Q178: 153 | R178: 153
A179: 自然资源海洋气象等支出 | B179: 6,706 | C179: -1,603 | F179: 155 | K179: -1,758 | Q179: 5,103 | R179: 4,459 | S179: 644 | T179: 644
A180: 自然资源事务 | B180: 6,676 | C180: -1,623 | F180: 155 | K180: -1,778 | Q180: 5,053 | R180: 4,409 | S180: 644 | T180: 644
A181: 气象事务 | B181: 30 | C181: 20 | K181: 20 | Q181: 50 | R181: 50
A182: 其他自然资源海洋气象等支出
A183: 住房保障支出 | B183: 19,505 | C183: 8,228 | K183: 8,228 | Q183: 27,733 | R183: 27,081 | S183: 652 | T183: 652
A184: 保障性安居工程支出 | B184: 1,880 | C184: 8,996 | K184: 8,996 | Q184: 10,876 | R184: 10,224 | S184: 652 | T184: 652
A185: 住房改革支出 | B185: 17,625 | C185: -768 | K185: -768 | Q185: 16,857 | R185: 16,857
A186: 城乡社区住宅
A187: 粮油物资储备支出 | B187: 2,818 | C187: -517 | K187: -517 | Q187: 2,301 | R187: 1,551 | S187: 750 | T187: 750
A188: 粮油物资事务 | B188: 2,818 | C188: -517 | K188: -517 | Q188: 2,301 | R188: 1,551 | S188: 750 | T188: 750
A189: 能源储备
A190: 粮油储备
A191: 重要商品储备
A192: 灾害防治及应急管理支出 | B192: 2,432 | C192: 1,108 | F192: 1,590 | K192: -482 | Q192: 3,540 | R192: 2,877 | S192: 663 | T192: 663
A193: 应急管理事务 | B193: 982 | C193: 470 | F193: 866 | K193: -396 | Q193: 1,452 | R193: 800 | S193: 652 | T193: 652
A194: 消防救援事务 | B194: 1,346 | C194: -112 | K194: -112 | Q194: 1,234 | R194: 1,234
A195: 矿山安全
A196: 地震事务
A197: 自然灾害防治 | B197: 20 | Q197: 20 | R197: 20
A198: 自然灾害救灾及恢复重建支出 | C198: 794 | F198: 724 | K198: 70 | Q198: 794 | R198: 783 | S198: 11 | T198: 11
A199: 其他灾害防治及应急管理支出 | B199: 84 | C199: -44 | K199: -44 | Q199: 40 | R199: 40
A200: 预备费 | B200: 5,330 | C200: -5,330 | J200: -5,330
... 8 more rows

Sheet J04
A1: 2024年度鄄城县一般公共预算收入决算明细表
A2: 决算04表
A3: 单位:万元
A4: 预算科目 | B4: 决算数
A5: 税收收入 | B5: 110,450
A6: 增值税 | B6: 43,892
A7: 国内增值税 | B7: 43,892
A8: 国有企业增值税 | B8: 550
A9: 集体企业增值税 | B9: 53
A10: 股份制企业增值税 | B10: 15,613
A11: 联营企业增值税
A12: 港澳台和外商投资企业增值税 | B12: 161
A13: 私营企业增值税 | B13: 31,835
A14: 中国国家铁路集团有限公司改征增值税收入
A15: 其他增值税 | B15: 1,304
A16: 增值税税款滞纳金、罚款收入 | B16: 229
A17: 残疾人就业增值税退税
A18: 软件增值税退税 | B18: -25
A19: 宣传文化单位增值税退税
A20: 核电站增值税退税
A21: 资源综合利用增值税退税 | B21: -8,096
A22: 黄金增值税退税
A23: 光伏发电增值税退税
A24: 风力发电增值税退税
A25: 管道运输增值税退税
A26: 融资租赁增值税退税
A27: 增值税留抵退税 | B27: -243
A28: 增值税留抵退税省级调库
A29: 增值税留抵退税省级以下调库 | B29: -2,289
A30: 其他增值税退税
A31: 免抵调增增值税 | B31: 4,800
A32: 成品油价格和税费改革增值税划出
A33: 跨省管道运输企业增值税
A34: 企业所得税 | B34: 8,121
A35: 国有冶金工业所得税
A36: 国有有色金属工业所得税
A37: 国有煤炭工业所得税
A38: 国有电力工业所得税
A39: 国有石油和化学工业所得税
A40: 国有机械工业所得税
A41: 国有汽车工业所得税
A42: 国有核工业所得税
A43: 国有航空工业所得税
A44: 国有航天工业所得税
A45: 国有电子工业所得税
A46: 国有兵器工业所得税
A47: 国有船舶工业所得税
A48: 国有建筑材料工业所得税
A49: 国有烟草企业所得税
A50: 国有纺织企业所得税
A51: 国有铁道企业所得税
A52: 中国国家铁路集团有限公司集中缴纳的铁路运输企业所得税
A53: 其他国有铁道企业所得税
A54: 国有交通企业所得税
A55: 国有民航企业所得税
A56: 国有外贸企业所得税
A57: 国有银行所得税
A58: 其他国有银行所得税
A59: 国有非银行金融企业所得税
A60: 其他国有非银行金融企业所得税
A61: 国有保险企业所得税
A62: 国有文教企业所得税
A63: 国有电影企业所得税
A64: 国有出版企业所得税
A65: 其他国有文教企业所得税
A66: 国有水产企业所得税
A67: 国有森林工业企业所得税
A68: 国有电信企业所得税
A69: 国有农垦企业所得税
A70: 其他国有企业所得税
A71: 集体企业所得税 | B71: 7
A72: 股份制企业所得税 | B72: 5,628
A73: 跨省合资铁路企业所得税
A74: 其他股份制企业所得税 | B74: 5,628
A75: 联营企业所得税
A76: 港澳台和外商投资企业所得税 | B76: 97
A77: 其他港澳台和外商投资企业所得税 | B77: 97
A78: 私营企业所得税 | B78: 2,174
A79: 其他企业所得税 | B79: 16
A80: 分支机构预缴所得税 | B80: 1
A81: 国有企业分支机构预缴所得税 | B81: 1
A82: 股份制企业分支机构预缴所得税
A83: 港澳台和外商投资企业分支机构预缴所得税
A84: 其他企业分支机构预缴所得税
A85: 总机构预缴所得税
A86: 国有企业总机构预缴所得税
A87: 股份制企业总机构预缴所得税
A88: 港澳台和外商投资企业总机构预缴所得税
A89: 其他企业总机构预缴所得税
A90: 总机构汇算清缴所得税
A91: 国有企业总机构汇算清缴所得税
A92: 股份制企业总机构汇算清缴所得税
A93: 港澳台和外商投资企业总机构汇算清缴所得税
A94: 其他企业总机构汇算清缴所得税
A95: 跨市县分支机构预缴所得税 | B95: 1
A96: 国有企业分支机构预缴所得税
A97: 股份制企业分支机构预缴所得税 | B97: 1
A98: 港澳台和外商投资企业分支机构预缴所得税
A99: 其他企业分支机构预缴所得税
A100: 跨市县总机构预缴所得税
A101: 国有企业总机构预缴所得税
A102: 股份制企业总机构预缴所得税
A103: 港澳台和外商投资企业总机构预缴所得税
A104: 其他企业总机构预缴所得税
A105: 跨市县总机构汇算清缴所得税
A106: 国有企业总机构汇算清缴所得税
A107: 股份制企业总机构汇算清缴所得税
A108: 港澳台和外商投资企业总机构汇算清缴所得税
A109: 其他企业总机构汇算清缴所得税
A110: 跨市县分支机构汇算清缴所得税
A111: 国有企业分支机构汇算清缴所得税
A112: 股份制企业分支机构汇算清缴所得税
A113: 港澳台和外商投资企业分支机构汇算清缴所得税
A114: 其他企业分支机构汇算清缴所得税
A115: 分支机构汇算清缴所得税
A116: 国有企业分支机构汇算清缴所得税
A117: 股份制企业分支机构汇算清缴所得税
A118: 港澳台和外商投资企业分支机构汇算清缴所得税
A119: 其他企业分支机构汇算清缴所得税
A120: 企业所得税税款滞纳金、罚款、加收利息收入 | B120: 197
A121: 内资企业所得税税款滞纳金、罚款、加收利息收入 | B121: 196
A122: 港澳台和外商投资企业所得税税款滞纳金、罚款、加收利息收入 | B122: 1
A123: 跨省管道运输企业所得税
A124: 企业所得税退税
A125: 国有冶金工业所得税退税
A126: 国有有色金属工业所得税退税
A127: 国有煤炭工业所得税退税
A128: 国有电力工业所得税退税
A129: 国有石油和化学工业所得税退税
A130: 国有机械工业所得税退税
A131: 国有汽车工业所得税退税
A132: 国有核工业所得税退税
A133: 国有航空工业所得税退税
A134: 国有航天工业所得税退税
A135: 国有电子工业所得税退税
A136: 国有兵器工业所得税退税
A137: 国有船舶工业所得税退税
A138: 国有建筑材料工业所得税退税
A139: 国有烟草企业所得税退税
A140: 国有纺织企业所得税退税
A141: 国有铁道企业所得税退税
A142: 国有交通企业所得税退税
A143: 国有民航企业所得税退税
A144: 国有外贸企业所得税退税
A145: 国有银行所得税退税
A146: 其他国有银行所得税退税
A147: 国有非银行金融企业所得税退税
A148: 其他国有非银行金融企业所得税退税
A149: 国有保险企业所得税退税
A150: 国有文教企业所得税退税
A151: 国有电影企业所得税退税
A152: 国有出版企业所得税退税
A153: 其他国有文教企业所得税退税
A154: 国有水产企业所得税退税
A155: 国有森林工业企业所得税退税
A156: 国有电信企业所得税退税
A157: 其他国有企业所得税退税
A158: 集体企业所得税退税
A159: 股份制企业所得税退税
A160: 其他股份制企业所得税退税
A161: 联营企业所得税退税
A162: 私营企业所得税退税
A163: 跨省市总分机构企业所得税退税
A164: 国有跨省市总分机构企业所得税退税
A165: 股份制跨省市总分机构企业所得税退税
A166: 港澳台和外商投资跨省市总分机构企业所得税退税
A167: 其他跨省市总分机构企业所得税退税
A168: 跨市县总分机构企业所得税退税
A169: 国有跨市县总分机构企业所得税退税
A170: 股份制跨市县总分机构企业所得税退税
A171: 港澳台和外商投资跨市县总分机构企业所得税退税
A172: 其他跨市县总分机构企业所得税退税
A173: 其他企业所得税退税
A174: 个人所得税(款) | B174: 1,421
A175: 个人所得税(项) | B175: 1,978
A176: 储蓄存款利息所得税
A177: 其他个人所得税 | B177: 1,978
A178: 个人所得税综合所得汇算清缴退税 | B178: -520
A179: 个人所得税代扣代缴手续费退库 | B179: -42
A180: 个人所得税税款滞纳金、罚款、加收利息收入 | B180: 5
A181: 资源税 | B181: 2,108
A182: 水资源税 | B182: 1,471
A183: 其他资源税 | B183: 516
A184: 资源税税款滞纳金、罚款收入 | B184: 121
A185: 城市维护建设税 | B185: 3,994
A186: 国有企业城市维护建设税 | B186: 162
A187: 中国国家铁路集团有限公司集中缴纳的铁路运输企业城市维护建设税
A188: 其他国有企业城市维护建设税 | B188: 162
A189: 集体企业城市维护建设税 | B189: 5
A190: 股份制企业城市维护建设税 | B190: 1,186
A191: 联营企业城市维护建设税
A192: 港澳台和外商投资企业城市维护建设税 | B192: 60
A193: 私营企业城市维护建设税 | B193: 2,047
A194: 其他城市维护建设税 | B194: 511
A195: 城市维护建设税税款滞纳金、罚款收入 | B195: 23
A196: 成品油价格和税费改革城市维护建设税划出
A197: 跨省管道运输企业城市维护建设税
A198: 房产税 | B198: 4,887
A199: 国有企业房产税 | B199: 903
A200: 集体企业房产税 | B200: 3
... 333 more rows

Sheet J05
A1: 2024年度鄄城县一般公共预算支出决算功能分类明细表
A2: 决算05表
A3: 单位:万元
A4: 预算科目 | B4: 决算数
A5: 一般公共服务支出 | B5: 52,728
A6: 人大事务 | B6: 626
A7: 行政运行 | B7: 565
A8: 一般行政管理事务
A9: 机关服务
A10: 人大会议 | B10: 61
A11: 人大立法
A12: 人大监督
A13: 人大代表履职能力提升
A14: 代表工作
A15: 人大信访工作
A16: 事业运行
A17: 其他人大事务支出
A18: 政协事务 | B18: 476
A19: 行政运行 | B19: 446
A20: 一般行政管理事务
A21: 机关服务
A22: 政协会议 | B22: 30
A23: 委员视察
A24: 参政议政
A25: 事业运行
A26: 其他政协事务支出
A27: 政府办公厅(室)及相关机构事务 | B27: 33,327
A28: 行政运行 | B28: 32,271
A29: 一般行政管理事务
A30: 机关服务 | B30: 501
A31: 专项服务
A32: 专项业务及机关事务管理
A33: 政务公开审批
A34: 参事事务
A35: 事业运行 | B35: 112
A36: 其他政府办公厅(室)及相关机构事务支出 | B36: 443
A37: 发展与改革事务 | B37: 1,328
A38: 行政运行 | B38: 1,169
A39: 一般行政管理事务 | B39: 118
A40: 机关服务
A41: 战略规划与实施
A42: 日常经济运行调节
A43: 社会事业发展规划
A44: 经济体制改革研究
A45: 物价管理
A46: 事业运行
A47: 其他发展与改革事务支出 | B47: 41
A48: 统计信息事务 | B48: 388
A49: 行政运行 | B49: 250
A50: 一般行政管理事务
A51: 机关服务
A52: 信息事务
A53: 专项统计业务 | B53: 8
A54: 统计管理
A55: 专项普查活动 | B55: 106
A56: 统计抽样调查 | B56: 24
A57: 事业运行
A58: 其他统计信息事务支出
A59: 财政事务 | B59: 1,865
A60: 行政运行 | B60: 1,793
A61: 一般行政管理事务 | B61: 22
A62: 机关服务
A63: 预算改革业务
A64: 财政国库业务 | B64: 50
A65: 财政监察
A66: 信息化建设
A67: 财政委托业务支出
A68: 事业运行
A69: 其他财政事务支出
A70: 税收事务 | B70: 2,750
A71: 行政运行 | B71: 2,750
A72: 一般行政管理事务
A73: 机关服务
A74: 信息化建设
A75: 税收业务
A76: 事业运行
A77: 其他税收事务支出
A78: 审计事务 | B78: 534
A79: 行政运行 | B79: 534
A80: 一般行政管理事务
A81: 机关服务
A82: 审计业务
A83: 审计管理
A84: 信息化建设
A85: 事业运行
A86: 其他审计事务支出
A87: 海关事务
A88: 行政运行
A89: 一般行政管理事务
A90: 机关服务
A91: 缉私办案
A92: 口岸管理
A93: 信息化建设
A94: 海关关务
A95: 关税征管
A96: 海关监管
A97: 检验检疫
A98: 事业运行
A99: 其他海关事务支出
A100: 纪检监察事务 | B100: 1,877
A101: 行政运行 | B101: 1,877
A102: 一般行政管理事务
A103: 机关服务
A104: 大案要案查处
A105: 派驻派出机构
A106: 巡视工作
A107: 事业运行
A108: 其他纪检监察事务支出
A109: 商贸事务 | B109: 965
A110: 行政运行 | B110: 965
A111: 一般行政管理事务
A112: 机关服务
A113: 对外贸易管理
A114: 国际经济合作
A115: 外资管理
A116: 国内贸易管理
A117: 招商引资
A118: 事业运行
A119: 其他商贸事务支出
A120: 知识产权事务
A121: 行政运行
A122: 一般行政管理事务
A123: 机关服务
A124: 专利审批
A125: 知识产权战略和规划
A126: 国际合作与交流
A127: 知识产权宏观管理
A128: 商标管理
A129: 原产地地理标志管理
A130: 事业运行
A131: 其他知识产权事务支出
A132: 民族事务 | B132: 41
A133: 行政运行
A134: 一般行政管理事务
A135: 机关服务
A136: 民族工作专项
A137: 事业运行
A138: 其他民族事务支出 | B138: 41
A139: 港澳台事务
A140: 行政运行
A141: 一般行政管理事务
A142: 机关服务
A143: 港澳事务
A144: 台湾事务
A145: 事业运行
A146: 其他港澳台事务支出
A147: 档案事务 | B147: 191
A148: 行政运行 | B148: 177
A149: 一般行政管理事务
A150: 机关服务
A151: 档案馆 | B151: 14
A152: 其他档案事务支出
A153: 民主党派及工商联事务 | B153: 36
A154: 行政运行 | B154: 36
A155: 一般行政管理事务
A156: 机关服务
A157: 参政议政
A158: 事业运行
A159: 其他民主党派及工商联事务支出
A160: 群众团体事务 | B160: 395
A161: 行政运行 | B161: 318
A162: 一般行政管理事务 | B162: 11
A163: 机关服务
A164: 工会事务
A165: 事业运行
A166: 其他群众团体事务支出 | B166: 66
A167: 党委办公厅(室)及相关机构事务 | B167: 1,540
A168: 行政运行 | B168: 1,512
A169: 一般行政管理事务 | B169: 28
A170: 机关服务
A171: 专项业务
A172: 事业运行
A173: 其他党委办公厅(室)及相关机构事务支出
A174: 组织事务 | B174: 703
A175: 行政运行 | B175: 630
A176: 一般行政管理事务
A177: 机关服务
A178: 公务员事务
A179: 事业运行
A180: 其他组织事务支出 | B180: 73
A181: 宣传事务 | B181: 773
A182: 行政运行 | B182: 600
A183: 一般行政管理事务
A184: 机关服务
A185: 宣传管理
A186: 事业运行
A187: 其他宣传事务支出 | B187: 173
A188: 统战事务 | B188: 156
A189: 行政运行 | B189: 156
A190: 一般行政管理事务
A191: 机关服务
A192: 宗教事务
A193: 华侨事务
A194: 事业运行
A195: 其他统战事务支出
A196: 对外联络事务
A197: 行政运行
A198: 一般行政管理事务
A199: 机关服务
A200: 事业运行
... 1119 more rows

Sheet J06
A1: 2024年度鄄城县一般公共预算支出决算经济分类明细表
A2: 决算06表
A3: 单位:万元
A4: 预算科目 | B4: 决算数
A5: 机关工资福利支出 | B5: 149,545
A6: 工资奖金津补贴 | B6: 111,090
A7: 社会保障缴费 | B7: 23,608
A8: 住房公积金 | B8: 11,336
A9: 其他工资福利支出 | B9: 3,511
A10: 机关商品和服务支出 | B10: 41,370
A11: 办公经费 | B11: 13,655
A12: 会议费 | B12: 133
A13: 培训费 | B13: 385
A14: 专用材料购置费 | B14: 1,777
A15: 委托业务费 | B15: 20,899
A16: 公务接待费
A17: 因公出国(境)费用 | B17: 10
A18: 公务用车运行维护费 | B18: 344
A19: 维修(护)费 | B19: 2,319
A20: 其他商品和服务支出 | B20: 1,848
A21: 机关资本性支出 | B21: 62,577
A22: 房屋建筑物购建 | B22: 1,136
A23: 基础设施建设 | B23: 53,137
A24: 公务用车购置 | B24: 36
A25: 土地征迁补偿和安置支出 | B25: 2,806
A26: 设备购置 | B26: 2,261
A27: 大型修缮 | B27: 1,948
A28: 其他资本性支出 | B28: 1,253
A29: 机关资本性支出(基本建设)
A30: 房屋建筑物购建
A31: 基础设施建设
A32: 公务用车购置
A33: 设备购置
A34: 大型修缮
A35: 其他资本性支出
A36: 对事业单位经常性补助 | B36: 76,285
A37: 工资福利支出 | B37: 70,485
A38: 商品和服务支出 | B38: 5,800
A39: 其他对事业单位补助
A40: 对事业单位资本性补助 | B40: 17,821
A41: 资本性支出 | B41: 17,821
A42: 资本性支出(基本建设)
A43: 对企业补助 | B43: 14,644
A44: 费用补贴 | B44: 10,302
A45: 利息补贴 | B45: 2,250
A46: 其他对企业补助 | B46: 2,092
A47: 对企业资本性支出
A48: 资本金注入
A49: 资本金注入(基本建设)
A50: 政府投资基金股权投资
A51: 其他对企业资本性支出
A52: 对个人和家庭的补助 | B52: 89,051
A53: 社会福利和救助 | B53: 51,470
A54: 助学金 | B54: 393
A55: 个人农业生产补贴 | B55: 14,444
A56: 离退休费 | B56: 20,839
A57: 其他对个人和家庭的补助 | B57: 1,905
A58: 对社会保障基金补助 | B58: 54,068
A59: 对社会保险基金补助 | B59: 54,068
A60: 对机关事业单位职业年金的补助
A61: 债务利息及费用支出 | B61: 2,465
A62: 国内债务付息 | B62: 2,465
A63: 国外债务付息
A64: 国内债务发行费用
A65: 国外债务发行费用
A66: 其他支出 | B66: 153
A67: 国家赔偿费用支出
A68: 对民间非营利组织和群众性自治组织补贴
A69: 经常性赠与
A70: 资本性赠与
A71: 其他支出 | B71: 153
A76: 本 年 支 出 合 计 | B76: 507,979

Sheet J07
A1: 2024年度鄄城县一般公共预算转移性和债务相关收支决算明细表
A2: 决算07表
A3: 单位:万元
A4: 预算科目 | B4: 决算数 | C4: 预算科目 | D4: 决算数
A5: 一、返还性收入 | B5: 12,578 | C5: 国防 | D5: 5
A6: 所得税基数返还收入 | B6: 482 | C6: 公共安全 | D6: 24
A7: 成品油税费改革税收返还收入 | B7: 410 | C7: 教育 | D7: 104
A8: 增值税税收返还收入 | B8: 5,303 | C8: 科学技术 | D8: 190
A9: 消费税税收返还收入 | B9: 17 | C9: 文化旅游体育与传媒 | D9: 32
A10: 增值税“五五分享”税收返还收入 | B10: 6,222 | C10: 社会保障和就业 | D10: 165
A11: 其他返还性收入 | B11: 144 | C11: 卫生健康 | D11: 246
A12: 二、一般性转移支付收入 | B12: 309,604 | C12: 节能环保 | D12: 6,457
A13: 体制补助收入 | C13: 城乡社区 | D13: 2,505
A14: 均衡性转移支付收入 | B14: 31,071 | C14: 农林水 | D14: 2,132
A15: 县级基本财力保障机制奖补资金收入 | B15: 107,652 | C15: 交通运输 | D15: 530
A16: 结算补助收入 | B16: 2,276 | C16: 资源勘探工业信息等 | D16: 391
A17: 资源枯竭型城市转移支付补助收入 | C17: 商业服务业等 | D17: 290
A18: 企业事业单位划转补助收入 | B18: 102 | C18: 金融 | D18: 5
A19: 产粮(油)大县奖励资金收入 | B19: 3,574 | C19: 自然资源海洋气象等 | D19: 155
A20: 重点生态功能区转移支付收入 | C20: 住房保障
A21: 固定数额补助收入 | B21: 13,982 | C21: 粮油物资储备
A22: 革命老区转移支付收入 | B22: 3,503 | C22: 灾害防治及应急管理 | D22: 1,590
A23: 民族地区转移支付收入 | C23: 其他收入
A24: 边境地区转移支付收入 | C24: 四、债务(转贷)收入 | D24: 7,630
A25: 巩固脱贫攻坚成果衔接乡村振兴转移支付收入 | B25: 13,297 | C25: 地方政府一般债券(转贷)收入 | D25: 7,630
A26: 一般公共服务共同财政事权转移支付收入 | C26: 地方政府向外国政府借款(转贷)收入
A27: 外交共同财政事权转移支付收入 | C27: 地方政府向国际组织借款(转贷)收入
A28: 国防共同财政事权转移支付收入 | C28: 地方政府其他一般债务(转贷)收入
A29: 公共安全共同财政事权转移支付收入 | B29: 1,250 | C29: 五、调入资金 | D29: 36,602
A30: 教育共同财政事权转移支付收入 | B30: 19,048 | C30: 从政府性基金预算调入 | D30: 6,586
A31: 科学技术共同财政事权转移支付收入 | B31: 25 | C31: 从国有资本经营预算调入 | D31: 16
A32: 文化旅游体育与传媒共同财政事权转移支付收入 | B32: 341 | C32: 从其他资金调入 | D32: 30,000
A33: 社会保障和就业共同财政事权转移支付收入 | B33: 58,121 | C33: 六、区域间转移性收入
A34: 医疗卫生共同财政事权转移支付收入 | B34: 10,901 | C34: 接受其他地区援助收入
A35: 节能环保共同财政事权转移支付收入 | B35: 146 | C35: 生态保护补偿转移性收入
A36: 城乡社区共同财政事权转移支付收入 | C36: 土地指标调剂转移性收入
A37: 农林水共同财政事权转移支付收入 | B37: 33,410 | C37: 其他转移性收入
A38: 交通运输共同财政事权转移支付收入 | B38: 1,779 | C38: 七、上解上级支出 | D38: 38,666
A39: 资源勘探工业信息等共同财政事权转移支付收入 | C39: 体制上解支出 | D39: 28,613
A40: 商业服务业等共同财政事权转移支付收入 | C40: 专项上解支出 | D40: 10,053
A41: 金融共同财政事权转移支付收入 | C41: 八、债务还本支出 | D41: 7,690
A42: 自然资源海洋气象等共同财政事权转移支付收入 | B42: 49 | C42: 地方政府一般债券还本支出 | D42: 7,690
A43: 住房保障共同财政事权转移支付收入 | B43: 392 | C43: 地方政府向外国政府借款还本支出
A44: 粮油物资储备共同财政事权转移支付收入 | B44: 338 | C44: 地方政府向国际组织借款还本支出
A45: 灾害防治及应急管理共同财政事权转移支付收入 | B45: 44 | C45: 地方政府其他一般债务还本支出
A46: 其他共同财政事权转移支付收入 | C46: 九、区域间转移性支出
A47: 其他一般性转移支付收入 | B47: 8,303 | C47: 援助其他地区支出
A48: 三、专项转移支付收入 | B48: 15,020 | C48: 生态保护补偿转移性支出
A49: 一般公共服务 | B49: 199 | C49: 土地指标调剂转移性支出
A50: 外交 | C50: 其他转移性支出

Sheet J08
A1: 2024年度鄄城县一般公共预算收支决算分级表
A2: 决算08表
A3: 单位:万元
A4: 预算科目 | B4: 决算数合计 | C4: 省级 | D4: 地级 | E4: 其中:地级直属乡镇 | F4: 县级 | G4: 乡级 | H4: 预算科目 | I4: 决算数合计 | J4: 省级 | K4: 地级 | L4: 其中:地级直属乡镇 | M4: 县级 | N4: 乡级
A5: 一、税收收入 | B5: 110,450 | F5: 66,879 | G5: 43,571 | H5: 一、一般公共服务支出 | I5: 52,728 | M5: 28,968 | N5: 23,760
A6: 增值税 | B6: 43,892 | F6: 13,773 | G6: 30,119 | H6: 二、外交支出
A7: 企业所得税 | B7: 8,121 | F7: 5,621 | G7: 2,500 | H7: 三、国防支出 | I7: 155 | M7: 155
A8: 个人所得税 | B8: 1,421 | F8: 1,020 | G8: 401 | H8: 四、公共安全支出 | I8: 12,967 | M8: 12,967
A9: 资源税 | B9: 2,108 | F9: 1,995 | G9: 113 | H9: 五、教育支出 | I9: 127,666 | M9: 127,666
A10: 城市维护建设税 | B10: 3,994 | F10: 1,626 | G10: 2,368 | H10: 六、科学技术支出 | I10: 1,987 | M10: 1,987
A11: 房产税 | B11: 4,887 | F11: 3,996 | G11: 891 | H11: 七、文化旅游体育与传媒支出 | I11: 2,946 | M11: 2,946
A12: 印花税 | B12: 2,063 | F12: 1,016 | G12: 1,047 | H12: 八、社会保障和就业支出 | I12: 138,191 | M12: 134,979 | N12: 3,212
A13: 城镇土地使用税 | B13: 14,124 | F13: 9,935 | G13: 4,189 | H13: 九、卫生健康支出 | I13: 31,986 | M13: 29,765 | N13: 2,221
A14: 土地增值税 | B14: 3,724 | F14: 3,626 | G14: 98 | H14: 十、节能环保支出 | I14: 11,374 | M14: 11,374
A15: 车船税 | B15: 3,609 | F15: 3,301 | G15: 308 | H15: 十一、城乡社区支出 | I15: 14,396 | M15: 5,428 | N15: 8,968
A16: 耕地占用税 | B16: 13,030 | F16: 12,600 | G16: 430 | H16: 十二、农林水支出 | I16: 59,898 | M16: 50,151 | N16: 9,747
A17: 契税 | B17: 9,059 | F17: 8,191 | G17: 868 | H17: 十三、交通运输支出 | I17: 13,855 | M17: 13,855
A18: 烟叶税 | H18: 十四、资源勘探工业信息等支出 | I18: 1,117 | M18: 920 | N18: 197
A19: 环境保护税 | B19: 418 | F19: 179 | G19: 239 | H19: 十五、商业服务业等支出 | I19: 127 | M19: 127
A20: 其他税收收入 | H20: 十六、金融支出
A21: 二、非税收入 | B21: 71,171 | F21: 68,353 | G21: 2,818 | H21: 十七、援助其他地区支出 | I21: 153 | M21: 153
A22: 专项收入 | B22: 20,347 | F22: 17,813 | G22: 2,534 | H22: 十八、自然资源海洋气象等支出 | I22: 4,459 | M22: 4,459
A23: 行政事业性收费收入 | B23: 8,498 | F23: 8,214 | G23: 284 | H23: 十九、住房保障支出 | I23: 27,081 | M23: 24,624 | N23: 2,457
A24: 罚没收入 | B24: 8,285 | F24: 8,285 | H24: 二十、粮油物资储备支出 | I24: 1,551 | M24: 1,551
A25: 国有资本经营收入 | H25: 二十一、灾害防治及应急管理支出 | I25: 2,877 | M25: 2,507 | N25: 370
A26: 国有资源(资产)有偿使用收入 | B26: 33,574 | F26: 33,574 | H26: 二十二、其他支出
A27: 其他收入 | B27: 467 | F27: 467 | H27: 二十三、债务付息支出 | I27: 2,465 | M27: 2,465
H28: 二十四、债务发行费用支出
A40: 本 年 收 入 合 计 | B40: 181,621 | F40: 135,232 | G40: 46,389 | H40: 本 年 支 出 合 计 | I40: 507,979 | M40: 457,047 | N40: 50,932

Sheet J09
A1: 2024年度鄄城县民族自治地方一般公共预算收支决算表
A2: 决算09表
A3: 单位:万元
A4: 预算科目 | B4: 合计 | C4: 自治州 | D4: 自治县 | E4: 预算科目 | F4: 合计 | G4: 自治州 | H4: 自治县
A5: 一、税收收入 | B5: =SUM(C5:D5) -> 0 | E5: 一、一般公共服务支出 | F5: 0
A6: 增值税 | B6: 0 | E6: 二、外交支出 | F6: 0
A7: 企业所得税 | B7: 0 | E7: 三、国防支出 | F7: 0
A8: 个人所得税 | B8: 0 | E8: 四、公共安全支出 | F8: 0
A9: 资源税 | B9: 0 | E9: 五、教育支出 | F9: 0
A10: 城市维护建设税 | B10: 0 | E10: 六、科学技术支出 | F10: 0
A11: 房产税 | B11: 0 | E11: 七、文化旅游体育与传媒支出 | F11: 0
A12: 印花税 | B12: 0 | E12: 八、社会保障和就业支出 | F12: 0
A13: 城镇土地使用税 | B13: 0 | E13: 九、卫生健康支出 | F13: 0
A14: 土地增值税 | B14: 0 | E14: 十、节能环保支出 | F14: 0
A15: 车船税 | B15: 0 | E15: 十一、城乡社区支出 | F15: 0
A16: 耕地占用税 | B16: 0 | E16: 十二、农林水支出 | F16: 0
A17: 契税 | B17: 0 | E17: 十三、交通运输支出 | F17: 0
A18: 烟叶税 | B18: 0 | E18: 十四、资源勘探工业信息等支出 | F18: 0
A19: 环境保护税 | B19: 0 | E19: 十五、商业服务业等支出 | F19: 0
A20: 其他税收收入 | B20: 0 | E20: 十六、金融支出 | F20: 0
A21: 二、非税收入 | B21: 0 | E21: 十七、援助其他地区支出 | F21: 0
A22: 专项收入 | B22: 0 | E22: 十八、自然资源海洋气象等支出 | F22: 0
A23: 行政事业性收费收入 | B23: 0 | E23: 十九、住房保障支出 | F23: 0
A24: 罚没收入 | B24: 0 | E24: 二十、粮油物资储备支出 | F24: 0
A25: 国有资本经营收入 | B25: 0 | E25: 二十一、灾害防治及应急管理支出 | F25: 0
A26: 国有资源(资产)有偿使用收入 | B26: 0 | E26: 二十二、其他支出 | F26: 0
A27: 其他收入 | B27: 0 | E27: 二十三、债务付息支出 | F27: 0
E28: 二十四、债务发行费用支出 | F28: 0
A40: 本 年 收 入 合 计 | B40: =B5+B21 -> 0 | E40: 本 年 支 出 合 计 | F40: 0

Sheet J10
A1: 2024年度鄄城县一般公共预算收支及平衡情况表
A2: 决算10表
A3: 单位:万元
A4: 地 区 | B4: 收 支 部 分 | O4: 收 支 部 分 | AC4: 收 支 部 分 | AU4: 平 衡 部 分 | BF4: 平 衡 部 分
B5: 收 入 部 分 | O5: 收 入 部 分 | V5: 支 出 部 分 | AC5: 支 出 部 分 | AU5: 收 入 部 分 | BF5: 支 出 部 分 | BP5: 结 余 部 分
B6: 收入合计 | C6: 税 收 收 入 | O6: 非 税 收 入 | V6: 支出合计 | W6: 一般公共服务支出 | X6: 外交支出 | Y6: 国防支出 | Z6: 公共安全支出 | AA6: 教育支出 | AB6: 科学技术支出 | AC6: 文化旅游体育与传媒支出 | AD6: 社会保障和就业支出 | AE6: 卫生健康支出 | AF6: 节能环保支出 | AG6: 城乡社区支出 | AH6: 农林水支出 | AI6: 交通运输支出 | AJ6: 资源勘探工业信息等支出 | AK6: 商业服务业等支出 | AL6: 金融支出 | AM6: 援助其他地区支出 | AN6: 自然资源海洋气象等支出 | AO6: 住房保障支出 | AP6: 粮油物资储备支出 | AQ6: 灾害防治及应急管理支出 | AR6: 其他支出 | AS6: 债务付息支出 | AT6: 债务发行费用支出 | AU6: 收入总计 | AV6: 本年收入 | AW6: 上级补助收入 | AX6: 待偿债再融资一般债券上年结余 | AY6: 上年结余收入 | AZ6: 调入资金 | BA6: 债务(转贷)收入 | BB6: 国债转贷收入、上年结余及转补助数 | BC6: 动用预算稳定调节基金 | BD6: 区域间转移性收入 | BE6: 省补助计划单列市收入 | BF6: 支出总计 | BG6: 本年支出 | BH6: 上解上级支出 | BI6: 调出资金 | BJ6: 债务还本支出 | BK6: 补充预算周转金 | BL6: 国债转贷拨付数及年终结余 | BM6: 安排预算稳定调节基金 | BN6: 区域间转移性支出 | BO6: 计划单列市上解省支出 | BP6: 结余总计 | BQ6: 待偿债再融资一般债券结余 | BR6: 年终结余
C7: 小计 | D7: 增值税 | E7: 企业所得税 | F7: 个人所得税 | G7: 资源税 | H7: 城市维护建设税 | I7: 房产税 | J7: 城镇土地使用税 | K7: 土地增值税 | L7: 耕地占用税 | M7: 契税 | N7: 其他各项税收收入 | O7: 小计 | P7: 专项收入 | Q7: 行政事业性收费收入 | R7: 罚没收入 | S7: 国有资本经营收入 | T7: 国有资源(资产)有偿使用收入 | U7: 其他收入
A8: =REPT(" ",6-6)&"鄄城县" -> 鄄城县 | B8: 181,621 | C8: 110,450 | D8: 43,892 | E8: 8,121 | F8: 1,421 | G8: 2,108 | H8: 3,994 | I8: 4,887 | J8: 14,124 | K8: 3,724 | L8: 13,030 | M8: 9,059 | N8: 6,090 | O8: 71,171 | P8: 20,347 | Q8: 8,498 | R8: 8,285 | T8: 33,574 | U8: 467 | V8: 507,979 | W8: 52,728 | Y8: 155 | Z8: 12,967 | AA8: 127,666 | AB8: 1,987 | AC8: 2,946 | AD8: 138,191 | AE8: 31,986 | AF8: 11,374 | AG8: 14,396 | AH8: 59,898 | AI8: 13,855 | AJ8: 1,117 | AK8: 127 | AM8: 153 | AN8: 4,459 | AO8: 27,081 | AP8: 1,551 | AQ8: 2,877 | AS8: 2,465 | AU8: 640,412 | AV8: 181,621 | AW8: 337,202 | AY8: 30,194 | AZ8: 36,602 | BA8: 7,630 | BC8: 47,163 | BF8: 597,148 | BG8: 507,979 | BH8: 38,666 | BJ8: 7,690 | BM8: 42,813 | BP8: =SUM(BQ8:BR8) -> 43,264 | BR8: 43,264

Sheet sheet02
A9: 第二部分:政府性基金预算

Sheet J11
A1: 2024年度鄄城县政府性基金预算收支决算总表
A2: 决算11表
A3: 单位:万元
A4: 预算科目 | B4: 预算数 | C4: 调整预算数 | D4: 决算数 | E4: 预算科目 | F4: 预算数 | G4: 调整预算数 | H4: 决算数
A5: 政府性基金收入 | B5: 310,880 | C5: 210,160 | D5: 210,160 | E5: 教育支出
A6: 专项债务对应项目专项收入 | C6: 4,619 | D6: 4,619 | E6: 科学技术支出
E7: 文化旅游体育与传媒支出 | F7: 7 | G7: 16 | H7: 4
E8: 社会保障和就业支出
E9: 卫生健康支出
E10: 节能环保支出
E11: 城乡社区支出 | F11: 291,336 | G11: 273,087 | H11: 236,948
E12: 农林水支出
E13: 交通运输支出
E14: 资源勘探工业信息等支出 | G14: 1,141
E15: 自然资源海洋气象等支出
E16: 住房保障支出
E17: 粮油物资储备支出
E18: 灾害防治及应急管理支出
E19: 其他支出 | F19: 1,269 | G19: 215,547 | H19: 111,924
E20: 债务付息支出 | F20: 32,708 | G20: 32,367 | H20: 32,367
E21: 债务发行费用支出
E22: 抗疫特别国债安排的支出
A23: 本 年 收 入 合 计 | B23: 310,880 | C23: 214,779 | D23: 214,779 | E23: 本 年 支 出 合 计 | F23: 325,320 | G23: 522,158 | H23: 381,243
A24: 上级补助收入 | D24: 37,923 | E24: 上解上级支出 | H24: 266
A25: 政府性基金转移支付收入 | D25: 37,923
A26: 科学技术
A27: 文化旅游体育与传媒 | D27: 16
A28: 社会保障和就业
A29: 节能环保
A30: 城乡社区 | D30: 852
A31: 农林水
A32: 交通运输
A33: 资源勘探工业信息等
A34: 自然资源海洋气象等
A35: 超长期特别国债转移支付收入 | D35: 35,991
A36: 其他收入 | D36: 1,064
A37: 待偿债再融资专项债券上年结余
A38: 上年结余收入 | D38: 115,632
A39: 调入资金 | D39: 23,972 | E39: 调出资金 | H39: 6,586
A40: 债务(转贷)收入 | D40: 332,905 | E40: 债务还本支出 | H40: 196,200
A41: 省补助计划单列市收入 | E41: 计划单列市上解省支出
A42: 动用超长期特别国债偿债备付金 | E42: 安排超长期特别国债偿债备付金
E43: 待偿债再融资专项债券结余
E44: 年终结余 | H44: 140,916
A50: 收 入 总 计 | D50: 725,211 | E50: 支 出 总 计 | H50: 725,211

Sheet J12
A1: 2024年度鄄城县政府性基金预算收入预算变动情况表
A2: 决算12表
A3: 单位:万元
A4: 预算科目 | B4: 预算数 | C4: 增加(减少)预算指标 | D4: 调整预算数
A5: 政府性基金收入 | B5: =SUM(B6:B22) -> 310,880 | C5: -100,720 | D5: 210,160
A6: 农网还贷资金收入
A7: 海南省高等级公路车辆通行附加费收入
A8: 国家电影事业发展专项资金收入
A9: 国有土地收益基金收入
A10: 农业土地开发资金收入
A11: 国有土地使用权出让收入 | B11: 300,000 | C11: -103,397 | D11: 196,603
A12: 大中型水库库区基金收入
A13: 彩票公益金收入 | B13: 280 | C13: 972 | D13: 1,252
A14: 城市基础设施配套费收入 | B14: 9,500 | C14: 1,307 | D14: 10,807
A15: 小型水库移民扶助基金收入
A16: 国家重大水利工程建设基金收入
A17: 车辆通行费
A18: 污水处理费收入 | B18: 1,100 | C18: 398 | D18: 1,498
A19: 彩票发行机构和彩票销售机构的业务费用
A20: 耕地保护考核奖惩基金收入
A21: 超长期特别国债财务基金收入
A22: 其他政府性基金收入
A23: 专项债务对应项目专项收入 | B23: =SUM(B24:B34) -> 0 | C23: 4,619 | D23: 4,619
A24: 海南省高等级公路车辆通行附加费专项债务对应项目专项收入
A25: 国家电影事业发展专项资金专项债务对应项目专项收入
A26: 国有土地使用权出让金专项债务对应项目专项收入
A27: 农业土地开发资金专项债务对应项目专项收入
A28: 大中型水库库区基金专项债务对应项目专项收入
A29: 城市基础设施配套费专项债务对应项目专项收入
A30: 小型水库移民扶助基金专项债务对应项目专项收入
A31: 国家重大水利工程建设基金专项债务对应项目专项收入
A32: 车辆通行费专项债务对应项目专项收入
A33: 污水处理费专项债务对应项目专项收入
A34: 其他政府性基金专项债务对应项目专项收入 | C34: 4,619 | D34: 4,619
A36: 合 计 | B36: 310,880 | C36: -96,101 | D36: 214,779

Sheet J13
A1: 2024年度鄄城县政府性基金预算支出预算变动情况表
A2: 决算13表
A3: 单位:万元
A4: 预算科目 | B4: 预算数 | C4: 变 动 项 目 | K4: 调整预算数 | L4: 决算数
C5: 小 计 | D5: 专项补助 | E5: 动用上年结余 | F5: 调入资金 | G5: 债务(转贷)收入 | H5: 本年短收安排 | I5: 省补助计划单列市 | J5: 其他
A6: 教育支出
A7: 超长期特别国债安排的支出
A8: 科学技术支出
A9: 核电站乏燃料处理处置基金支出
A10: 超长期特别国债安排的支出
A11: 文化旅游体育与传媒支出 | B11: 7 | C11: 9 | D11: 9 | K11: 16 | L11: 4
A12: 国家电影事业发展专项资金安排的支出 | B12: 7 | C12: -1 | D12: -1 | K12: 6 | L12: 4
A13: 旅游发展基金支出 | C13: 10 | D13: 10 | K13: 10
A14: 国家电影事业发展专项资金对应专项债务收入安排的支出
A15: 社会保障和就业支出
A16: 超长期特别国债安排的支出
A17: 卫生健康支出
A18: 超长期特别国债安排的支出
A19: 节能环保支出
A20: 可再生能源电价附加收入安排的支出
A21: 超长期特别国债安排的支出
A22: 城乡社区支出 | B22: 291,336 | C22: -18,249 | D22: 30,296 | F22: 23,972 | G22: 35,000 | H22: -1 | J22: -107,516 | K22: 273,087 | L22: 236,948
A23: 国有土地使用权出让收入安排的支出 | B23: 277,630 | C23: -80,119 | D23: -704 | F23: 23,972 | H23: -1 | J23: -103,386 | K23: 197,511 | L23: 196,452
A24: 国有土地收益基金安排的支出
A25: 农业土地开发资金安排的支出
A26: 城市基础设施配套费安排的支出 | B26: 12,350 | C26: -3,223 | J26: -3,223 | K26: 9,127 | L26: 5,426
A27: 污水处理费安排的支出 | B27: 1,356 | C27: -907 | J27: -907 | K27: 449
A28: 土地储备专项债券收入安排的支出
A29: 棚户区改造专项债券收入安排的支出 | C29: 35,000 | G29: 35,000 | K29: 35,000 | L29: 35,000
A30: 城市基础设施配套费对应专项债务收入安排的支出
A31: 污水处理费对应专项债务收入安排的支出
A32: 国有土地使用权出让收入对应专项债务收入安排的支出
A33: 超长期特别国债安排的支出 | C33: 31,000 | D33: 31,000 | K33: 31,000 | L33: 70
A34: 农林水支出
A35: 大中型水库库区基金安排的支出
A36: 三峡水库库区基金支出
A37: 国家重大水利工程建设基金安排的支出
A38: 大中型水库库区基金对应专项债务收入安排的支出
A39: 国家重大水利工程建设基金对应专项债务收入安排的支出
A40: 大中型水库移民后期扶持基金支出
A41: 小型水库移民扶助基金安排的支出
A42: 小型水库移民扶助基金对应专项债务收入安排的支出
A43: 超长期特别国债安排的支出
A44: 交通运输支出
A45: 海南省高等级公路车辆通行附加费安排的支出
A46: 车辆通行费安排的支出
A47: 民航发展基金支出
A48: 海南省高等级公路车辆通行附加费对应专项债务收入安排的支出
A49: 政府收费公路专项债券收入安排的支出
A50: 车辆通行费对应专项债务收入安排的支出
A51: 超长期特别国债安排的支出
A52: 资源勘探工业信息等支出 | C52: 1,141 | D52: 1,141 | K52: 1,141
A53: 农网还贷资金支出
A54: 超长期特别国债安排的支出 | C54: 1,141 | D54: 1,141 | K54: 1,141
A55: 自然资源海洋气象等支出
A56: 耕地保护考核奖惩基金支出
A57: 住房保障支出
A58: 超长期特别国债安排的支出
A59: 粮油物资储备支出
A60: 超长期特别国债安排的支出
A61: 灾害防治及应急管理支出
A62: 用超长期特别国债收入安排的支出
A63: 其他支出 | B63: 1,269 | C63: 214,278 | D63: 4,487 | G63: 110,800 | J63: 98,991 | K63: 215,547 | L63: 111,924
A64: 其他政府性基金及对应专项债务收入安排的支出 | C64: 209,568 | G64: 110,800 | J64: 98,768 | K64: 209,568 | L64: 110,800
A65: 彩票发行销售机构业务费安排的支出
A66: 彩票公益金安排的支出 | B66: 1,269 | C66: 860 | D66: 637 | J66: 223 | K66: 2,129 | L66: 729
A67: 超长期特别国债安排的其他支出 | C67: 3,850 | D67: 3,850 | K67: 3,850 | L67: 395
A68: 债务付息支出 | B68: 32,708 | C68: -341 | J68: -341 | K68: 32,367 | L68: 32,367
A69: 债务发行费用支出
A70: 抗疫特别国债安排的支出
A71: 基础设施建设
A72: 抗疫相关支出
C73: 3,850 | D73: 3,850 | K73: 3,850 | L73: 395
A97: 合 计 | B97: 325,320 | C97: 196,838 | D97: 35,933 | F97: 23,972 | G97: 145,800 | H97: -1 | J97: -8,866 | K97: 522,158 | L97: 381,243

Sheet J14
A1: 2024年度鄄城县政府性基金预算收入决算明细表
A2: 决算14表
A3: 单位:万元
A4: 预算科目 | B4: 决算数
A5: 政府性基金收入 | B5: 210,160
A6: 农网还贷资金收入
A7: 地方农网还贷资金收入
A8: 海南省高等级公路车辆通行附加费收入
A9: 旅游发展基金收入
A10: 国家电影事业发展专项资金收入
A11: 国有土地收益基金收入
A12: 农业土地开发资金收入
A13: 国有土地使用权出让收入 | B13: 196,602
A14: 土地出让价款收入 | B14: 191,122
A15: 补缴的土地价款 | B15: 7
A16: 划拨土地收入
A17: 缴纳新增建设用地土地有偿使用费 | B17: -527
A18: 其他土地出让收入 | B18: 6,000
A19: 大中型水库库区基金收入
A20: 地方大中型水库库区基金收入
A21: 彩票公益金收入 | B21: 1,252
A22: 福利彩票公益金收入 | B22: 577
A23: 体育彩票公益金收入 | B23: 675
A24: 城市基础设施配套费收入 | B24: 10,808
A25: 小型水库移民扶助基金收入
A26: 国家重大水利工程建设基金收入
A27: 地方重大水利工程建设资金
A28: 车辆通行费
A29: 污水处理费收入 | B29: 1,498
A30: 彩票发行机构和彩票销售机构的业务费用
A31: 福利彩票销售机构的业务费用
A32: 体育彩票销售机构的业务费用
A33: 彩票兑奖周转金
A34: 彩票发行销售风险基金
A35: 彩票市场调控资金收入
A36: 耕地保护考核奖惩基金收入
A37: 超长期特别国债财务基金收入
A38: 其他政府性基金收入
A39: 专项债务对应项目专项收入 | B39: 4,619
A40: 海南省高等级公路车辆通行附加费专项债务对应项目专项收入
A41: 国家电影事业发展专项资金专项债务对应项目专项收入
A42: 国有土地使用权出让金专项债务对应项目专项收入
A43: 土地储备专项债券对应项目专项收入
A44: 棚户区改造专项债券对应项目专项收入
A45: 其他国有土地使用权出让金专项债务对应项目专项收入
A46: 农业土地开发资金专项债务对应项目专项收入
A47: 大中型水库库区基金专项债务对应项目专项收入
A48: 城市基础设施配套费专项债务对应项目专项收入
A49: 小型水库移民扶助基金专项债务对应项目专项收入
A50: 国家重大水利工程建设基金专项债务对应项目专项收入
A51: 车辆通行费专项债务对应项目专项收入
A52: 政府收费公路专项债券对应项目专项收入
A53: 其他车辆通行费专项债务对应项目专项收入
A54: 污水处理费专项债务对应项目专项收入
A55: 其他政府性基金专项债务对应项目专项收入 | B55: 4,619
A56: 其他地方自行试点项目收益专项债券对应项目专项收入 | B56: 4,619
A57: 其他政府性基金专项债务对应项目专项收入
A86: 本 年 收 入 合 计 | B86: 214,779

Sheet J15
A1: 2024年度鄄城县政府性基金预算支出决算功能分类明细表
A2: 决算15表
A3: 单位:万元
A4: 预算科目 | B4: 决算数
A5: 教育支出
A6: 超长期特别国债安排的支出
A7: 基础教育
A8: 高等教育
A9: 职业教育
A10: 特殊教育
A11: 其他教育支出
A12: 科学技术支出
A13: 核电站乏燃料处理处置基金支出
A14: 乏燃料运输
A15: 乏燃料离堆贮存
A16: 乏燃料后处理
A17: 高放废物的处理处置
A18: 乏燃料后处理厂的建设、运行、改造和退役
A19: 其他乏燃料处理处置基金支出
A20: 超长期特别国债安排的支出
A21: 基础研究
A22: 应用研究
A23: 技术研究与开发
A24: 科技条件与服务
A25: 科技重大项目
A26: 其他科技支出
A27: 文化旅游体育与传媒支出 | B27: 4
A28: 国家电影事业发展专项资金安排的支出 | B28: 4
A29: 资助国产影片放映
A30: 资助影院建设
A31: 资助少数民族语电影译制
A32: 购买农村电影公益性放映版权服务
A33: 其他国家电影事业发展专项资金支出 | B33: 4
A34: 旅游发展基金支出
A35: 宣传促销
A36: 行业规划
A37: 旅游事业补助
A38: 地方旅游开发项目补助
A39: 其他旅游发展基金支出
A40: 国家电影事业发展专项资金对应专项债务收入安排的支出
A41: 资助城市影院
A42: 其他国家电影事业发展专项资金对应专项债务收入支出
A43: 社会保障和就业支出
A44: 超长期特别国债安排的支出
A45: 养老机构及服务设施
A46: 公共就业服务设施
A47: 其他社会保障和就业支出
A48: 卫生健康支出
A49: 超长期特别国债安排的支出
A50: 公立医院
A51: 基层医疗卫生机构
A52: 公共卫生机构
A53: 托育机构
A54: 其他卫生健康支出
A55: 节能环保支出
A56: 可再生能源电价附加收入安排的支出
A57: 风力发电补助
A58: 太阳能发电补助
A59: 生物质能发电补助
A60: 其他可再生能源电价附加收入安排的支出
A61: 超长期特别国债安排的支出
A62: 水污染综合治理
A63: 应对气候变化
A64: "三北"工程建设
A65: 其他节能环保支出
A66: 城乡社区支出 | B66: 236,948
A67: 国有土地使用权出让收入安排的支出 | B67: 196,452
A68: 征地和拆迁补偿支出 | B68: 94,884
A69: 土地开发支出
A70: 城市建设支出 | B70: 35,623
A71: 农村基础设施建设支出 | B71: 19,167
A72: 补助被征地农民支出
A73: 土地出让业务支出
A74: 廉租住房支出 | B74: 500
A75: 支付破产或改制企业职工安置费
A76: 棚户区改造支出 | B76: 22,722
A77: 公共租赁住房支出
A78: 保障性住房租金补贴
A79: 农业生产发展支出
A80: 农村社会事业支出
A81: 农业农村生态环境支出
A82: 其他国有土地使用权出让收入安排的支出 | B82: 23,556
A83: 国有土地收益基金安排的支出
A84: 征地和拆迁补偿支出
A85: 土地开发支出
A86: 其他国有土地收益基金支出
A87: 农业土地开发资金安排的支出
A88: 城市基础设施配套费安排的支出 | B88: 5,426
A89: 城市公共设施 | B89: 3,901
A90: 城市环境卫生 | B90: 1,525
A91: 公有房屋
A92: 城市防洪
A93: 其他城市基础设施配套费安排的支出
A94: 污水处理费安排的支出
A95: 污水处理设施建设和运营
A96: 代征手续费
A97: 其他污水处理费安排的支出
A98: 土地储备专项债券收入安排的支出
A99: 征地和拆迁补偿支出
A100: 土地开发支出
A101: 其他土地储备专项债券收入安排的支出
A102: 棚户区改造专项债券收入安排的支出 | B102: 35,000
A103: 征地和拆迁补偿支出 | B103: 1,077
A104: 土地开发支出
A105: 其他棚户区改造专项债券收入安排的支出 | B105: 33,923
A106: 城市基础设施配套费对应专项债务收入安排的支出
A107: 城市公共设施
A108: 城市环境卫生
A109: 公有房屋
A110: 城市防洪
A111: 其他城市基础设施配套费对应专项债务收入安排的支出
A112: 污水处理费对应专项债务收入安排的支出
A113: 污水处理设施建设和运营
A114: 其他污水处理费对应专项债务收入安排的支出
A115: 国有土地使用权出让收入对应专项债务收入安排的支出
A116: 征地和拆迁补偿支出
A117: 土地开发支出
A118: 城市建设支出
A119: 农村基础设施建设支出
A120: 廉租住房支出
A121: 棚户区改造支出
A122: 公共租赁住房支出
A123: 其他国有土地使用权出让收入对应专项债务收入安排的支出
A124: 超长期特别国债安排的支出 | B124: 70
A125: 城乡社区公共设施 | B125: 70
A126: 其他城乡社区支出
A127: 农林水支出
A128: 大中型水库库区基金安排的支出
A129: 基础设施建设和经济发展
A130: 解决移民遗留问题
A131: 库区防护工程维护
A132: 其他大中型水库库区基金支出
A133: 三峡水库库区基金支出
A134: 基础设施建设和经济发展
A135: 解决移民遗留问题
A136: 库区维护和管理
A137: 其他三峡水库库区基金支出
A138: 国家重大水利工程建设基金安排的支出
A139: 南水北调工程建设
A140: 三峡后续工作
A141: 地方重大水利工程建设
A142: 其他重大水利工程建设基金支出
A143: 大中型水库库区基金对应专项债务收入安排的支出
A144: 基础设施建设和经济发展
A145: 其他大中型水库库区基金对应专项债务收入支出
A146: 国家重大水利工程建设基金对应专项债务收入安排的支出
A147: 南水北调工程建设
A148: 三峡工程后续工作
A149: 地方重大水利工程建设
A150: 其他重大水利工程建设基金对应专项债务收入支出
A151: 大中型水库移民后期扶持基金支出
A152: 移民补助
A153: 基础设施建设和经济发展
A154: 其他大中型水库移民后期扶持基金支出
A155: 小型水库移民扶助基金安排的支出
A156: 移民补助
A157: 基础设施建设和经济发展
A158: 其他小型水库移民扶助基金支出
A159: 小型水库移民扶助基金对应专项债务收入安排的支出
A160: 基础设施建设和经济发展
A161: 其他小型水库移民扶助基金对应专项债务收入安排的支出
A162: 超长期特别国债安排的支出
A163: 农业农村支出
A164: 水利支出
A165: 其他农林水支出
A166: 交通运输支出
A167: 海南省高等级公路车辆通行附加费安排的支出
A168: 公路建设
A169: 公路养护
A170: 公路还贷
A171: 其他海南省高等级公路车辆通行附加费安排的支出
A172: 车辆通行费安排的支出
A173: 公路还贷
A174: 政府还贷公路养护
A175: 政府还贷公路管理
A176: 其他车辆通行费安排的支出
A177: 民航发展基金支出
A178: 民航机场建设
A179: 空管系统建设
A180: 民航安全
A181: 航线和机场补贴
A182: 民航节能减排
A183: 通用航空发展
A184: 征管经费
A185: 民航科教和信息建设
A186: 其他民航发展基金支出
A187: 海南省高等级公路车辆通行附加费对应专项债务收入安排的支出
A188: 公路建设
A189: 其他海南省高等级公路车辆通行附加费对应专项债务收入安排的支出
A190: 政府收费公路专项债券收入安排的支出
A191: 公路建设
A192: 其他政府收费公路专项债券收入安排的支出
A193: 车辆通行费对应专项债务收入安排的支出
A194: 超长期特别国债安排的支出
A195: 公路水路运输
A196: 铁路运输
A197: 民用航空运输
A198: 邮政业支出
A199: 其他交通运输支出
A200: 资源勘探工业信息等支出
... 109 more rows

Sheet J16
A1: 2024年度鄄城县政府性基金预算收支及结余情况表
A2: 决算16表
A3: 单位:万元
A4: 收入项目 | B4: 合计 | C4: 本年收入 | D4: 上级补助收入 | E4: 待偿债再融资专项债券上年结余 | F4: 上年结余收入 | G4: 调入资金 | H4: 债务(转贷)收入 | I4: 省补助计划单列市收入 | J4: 动用超长期特别国债偿债备付金 | K4: 支出项目 | L4: 合计 | M4: 本年支出 | N4: 上解上级支出 | O4: 调出资金 | P4: 债务还本支出 | Q4: 计划单列市上解省支出 | R4: 安排超长期特别国债偿债备付金 | S4: 结余项目 | T4: 合计 | U4: 待偿债再融资专项债券结余 | V4: 年终结余
A6: 核电站乏燃料处理处置基金收入 | B6: =SUM(C6:J6) -> 0 | K6: 核电站乏燃料处理处置基金支出 | L6: =SUM(M6:R6) -> 0 | S6: 核电站乏燃料处理处置基金结余 | T6: =SUM(U6:V6) -> 0
A7: 国家电影事业发展专项资金相关收入 | B7: 6 | D7: 6 | K7: 国家电影事业发展专项资金相关支出 | L7: 4 | M7: 4 | S7: 国家电影事业发展专项资金相关结余 | T7: 2 | V7: 2
A8: 旅游发展基金收入 | B8: 10 | D8: 10 | K8: 旅游发展基金支出 | L8: 0 | S8: 旅游发展基金结余 | T8: 10 | V8: 10
A9: 可再生能源电价附加收入 | B9: 0 | K9: 可再生能源电价附加收入安排的支出 | L9: 0 | S9: 可再生能源电价附加结余 | T9: 0
A10: 国有土地使用权出让相关收入 | B10: 443,814 | C10: 196,602 | D10: 852 | F10: 283 | G10: 23,972 | H10: 222,105 | K10: 国有土地使用权出让相关支出 | L10: 442,755 | M10: 246,376 | N10: 178 | O10: 1 | P10: 196,200 | S10: 国有土地使用权出让相关结余 | T10: 1,059 | V10: 1,059
A11: 国有土地收益基金相关收入 | B11: 0 | K11: 国有土地收益基金相关支出 | L11: 0 | S11: 国有土地收益基金相关结余 | T11: 0
A12: 农业土地开发资金相关收入 | B12: 0 | K12: 农业土地开发资金相关支出 | L12: 0 | S12: 农业土地开发资金相关结余 | T12: 0
A13: 城市基础设施配套费相关收入 | B13: 13,658 | C13: 10,808 | F13: 2,850 | K13: 城市基础设施配套费相关支出 | L13: 9,956 | M13: 5,426 | O13: 4,530 | S13: 城市基础设施配套费相关结余 | T13: 3,702 | V13: 3,702
A14: 污水处理费相关收入 | B14: 1,754 | C14: 1,498 | F14: 256 | K14: 污水处理费相关支出 | L14: 1,305 | O14: 1,305 | S14: 污水处理费相关结余 | T14: 449 | V14: 449
A15: 大中型水库库区基金相关收入 | B15: 0 | K15: 大中型水库库区基金相关支出 | L15: 0 | S15: 大中型水库库区基金相关结余 | T15: 0
A16: 三峡水库库区基金收入 | B16: 0 | K16: 三峡水库库区基金支出 | L16: 0 | S16: 三峡水库库区基金结余 | T16: 0
A17: 国家重大水利工程建设基金相关收入 | B17: 0 | K17: 国家重大水利工程建设基金相关支出 | L17: 0 | S17: 国家重大水利工程建设基金相关结余 | T17: 0
A18: 大中型水库移民后期扶持基金收入 | B18: 0 | K18: 大中型水库移民后期扶持基金支出 | L18: 0 | S18: 大中型水库移民后期扶持基金结余 | T18: 0
A19: 小型水库移民扶助基金相关收入 | B19: 0 | K19: 小型水库移民扶助基金相关支出 | L19: 0 | S19: 小型水库移民扶助基金相关结余 | T19: 0
A20: 海南省高等级公路车辆通行附加费相关收入 | B20: 0 | K20: 海南省高等级公路车辆通行附加费相关支出 | L20: 0 | S20: 海南省高等级公路车辆通行附加费相关结余 | T20: 0
A21: 车辆通行费相关收入 | B21: 0 | K21: 车辆通行费相关支出 | L21: 0 | S21: 车辆通行费相关结余 | T21: 0
A22: 民航发展基金收入 | B22: 0 | K22: 民航发展基金支出 | L22: 0 | S22: 民航发展基金结余 | T22: 0
A23: 农网还贷资金收入 | B23: 0 | K23: 农网还贷资金支出 | L23: 0 | S23: 农网还贷资金结余 | T23: 0
A24: 耕地保护考核奖惩基金收入 | B24: 0 | K24: 耕地保护考核奖惩基金支出 | L24: 0 | S24: 耕地保护考核奖惩基金结余 | T24: 0
A25: 彩票发行机构和彩票销售机构的业务费用 | B25: 0 | K25: 彩票发行销售机构业务费安排的支出 | L25: 0 | S25: 彩票发行机构和彩票销售机构的业务费用结余 | T25: 0
A26: 彩票公益金收入 | B26: 2,879 | C26: 1,252 | D26: 1,064 | F26: 563 | K26: 彩票公益金安排的支出 | L26: 1,479 | M26: 729 | O26: 750 | S26: 彩票公益金结余 | T26: 1,400 | V26: 1,400
A27: 超长期特别国债相关收入 | B27: 35,991 | D27: 35,991 | K27: 超长期特别国债安排的支出 | L27: 465 | M27: 465 | S27: 超长期特别国债相关结余 | T27: 35,526 | V27: 35,526
A28: 其他政府性基金相关收入 | B28: 227,099 | C28: 4,619 | F28: 111,680 | H28: 110,800 | K28: 其他政府性基金相关支出 | L28: 128,331 | M28: 128,243 | N28: 88 | S28: 其他政府性基金相关结余 | T28: 98,768 | V28: 98,768
A29: 其中:抗疫特别国债上年结余收入 | K29: 其中:抗疫特别国债安排的支出 | L29: 0 | S29: 其中:抗疫特别国债结余 | T29: 0
A38: 收 入 合 计 | B38: 725,211 | C38: 214,779 | D38: 37,923 | F38: 115,632 | G38: 23,972 | H38: 332,905 | K38: 支 出 合 计 | L38: 584,295 | M38: 381,243 | N38: 266 | O38: 6,586 | P38: 196,200 | S38: 结 余 合 计 | T38: 140,916 | V38: 140,916

Sheet J17
A1: 2024年度鄄城县政府性基金预算收支决算分级表
A2: 决算17表
A3: 单位:万元
A4: 收入项目 | B4: 决算数合计 | C4: 省级 | D4: 地级 | E4: 其中:地级直属乡镇 | F4: 县级 | G4: 乡级 | H4: 支出项目 | I4: 决算数合计 | J4: 省级 | K4: 地级 | L4: 其中:地级直属乡镇 | M4: 县级 | N4: 乡级
A5: 国有土地使用权出让相关收入 | B5: 196,602 | F5: 196,602 | H5: 国有土地使用权出让相关支出 | I5: 246,376 | M5: 246,376
A6: 国有土地收益基金相关收入 | H6: 国有土地收益基金相关支出
A7: 农业土地开发资金相关收入 | H7: 农业土地开发资金相关支出
A8: 城市基础设施配套费相关收入 | B8: 10,808 | F8: 10,808 | H8: 城市基础设施配套费相关支出 | I8: 5,426 | M8: 5,426
A9: 污水处理费相关收入 | B9: 1,498 | F9: 1,498 | H9: 污水处理费相关支出
A10: 车辆通行费相关收入 | H10: 车辆通行费相关支出
A11: 彩票公益金收入 | B11: 1,252 | F11: 1,252 | H11: 彩票公益金安排的支出 | I11: 729 | M11: 729
A12: 其他各项政府性基金相关收入 | B12: =SUM(B40)-SUM(B5:B11) -> 4,619 | C12: 0 | D12: 0 | E12: 0 | F12: 4,619 | G12: 0 | H12: 超长期特别国债安排的支出 | I12: 465 | M12: 465
H13: 其他各项政府性基金相关支出 | I13: =SUM(I40)-SUM(I5:I12) -> 128,247 | J13: 0 | K13: 0 | L13: 0 | M13: 128,247 | N13: 0
A40: 本 年 收 入 合 计 | B40: 214,779 | F40: 214,779 | H40: 本 年 支 出 合 计 | I40: 381,243 | M40: 381,243

Sheet J18
A1: 2024年度鄄城县政府性基金预算收支及平衡情况表
A2: 决算18表
A3: 单位:万元
A4: 地 区 | B4: 收 支 部 分 | U4: 平 衡 部 分
B5: 收 入 部 分 | K5: 支 出 部 分 | U5: 收 入 部 分 | AD5: 支 出 部 分 | AK5: 结 余 部 分
B6: 收入合计 | C6: 国有土地使用权出让相关收入 | D6: 国有土地收益基金相关收入 | E6: 农业土地开发资金相关收入 | F6: 城市基础设施配套费相关收入 | G6: 污水处理费相关收入 | H6: 车辆通行费相关收入 | I6: 彩票公益金收入 | J6: 其他各项政府性基金相关收入 | K6: 支出合计 | L6: 国有土地使用权出让相关支出 | M6: 国有土地收益基金相关支出 | N6: 农业土地开发资金相关支出 | O6: 城市基础设施配套费相关支出 | P6: 污水处理费相关支出 | Q6: 车辆通行费相关支出 | R6: 彩票公益金安排的支出 | S6: 超长期特别国债安排的支出 | T6: 其他各项政府性基金相关支出 | U6: 收入总计 | V6: 本年收入 | W6: 上级补助收入 | X6: 待偿债再融资专项债券上年结余 | Y6: 上年结余收入 | Z6: 调入资金 | AA6: 债务(转贷)收入 | AB6: 省补助计划单列市收入 | AC6: 动用超长期特别国债偿债备付金 | AD6: 支出总计 | AE6: 本年支出 | AF6: 上解上级支出 | AG6: 调出资金 | AH6: 债务还本支出 | AI6: 计划单列市上解省支出 | AJ6: 安排超长期特别国债偿债备付金 | AK6: 结余总计 | AL6: 待偿债再融资专项债券结余 | AM6: 年终结余
A7: =REPT(" ",6-6)&"鄄城县" -> 鄄城县 | B7: 214,779 | C7: 196,602 | F7: 10,808 | G7: 1,498 | I7: 1,252 | J7: =B7-SUM(C7:I7) -> 4,619 | K7: 381,243 | L7: 246,376 | O7: 5,426 | R7: 729 | S7: 465 | T7: =K7-SUM(L7:S7) -> 128,247 | U7: =SUM(V7:AC7) -> 725,211 | V7: 214,779 | W7: 37,923 | Y7: 115,632 | Z7: 23,972 | AA7: 332,905 | AD7: =SUM(AE7:AJ7) -> 584,295 | AE7: 381,243 | AF7: 266 | AG7: 6,586 | AH7: 196,200 | AK7: =SUM(AL7:AM7) -> 140,916 | AM7: 140,916

Sheet sheet03
A9: 第三部分:国有资本经营预算

Sheet J19
A1: 2024年度鄄城县国有资本经营预算收支决算总表
H2: 决算19表
H3: 单位:万元
A4: 预算科目 | B4: 预算数 | C4: 调整预算数 | D4: 决算数 | E4: 预算科目 | F4: 预算数 | G4: 调整预算数 | H4: 决算数
A5: 利润收入 | E5: 解决历史遗留问题及改革成本支出 | F5: 35 | G5: 19 | H5: 8
A6: 股利、股息收入 | E6: 国有企业资本金注入
A7: 产权转让收入 | E7: 国有企业政策性补贴
A8: 清算收入 | E8: 其他国有资本经营预算支出
A9: 其他国有资本经营预算收入
A10: 本 年 收 入 合 计 | E10: 本 年 支 出 合 计 | F10: 35 | G10: 19 | H10: 8
A11: 上级补助收入 | D11: 19 | E11: 上解上级支出
A12: 上年结余收入 | D12: 16
A13: 省补助计划单列市收入 | E13: 计划单列市上解省支出
E14: 调出资金 | H14: 16
E15: 年终结余 | H15: 11
A43: 收 入 总 计 | D43: 35 | E43: 支 出 总 计 | H43: 35

Sheet J20
A1: 2024年度鄄城县国有资本经营预算收支决算明细表
A2: 决算20表
A3: 单位:万元
A4: 预算科目 | B4: 决算数 | C4: 预算科目 | D4: 决算数
A5: 利润收入 | C5: 解决历史遗留问题及改革成本支出 | D5: 8
A6: 石油石化企业利润收入 | C6: 厂办大集体改革支出
A7: 电力企业利润收入 | C7: “三供一业”移交补助支出
A8: 电信企业利润收入 | C8: 国有企业办职教幼教补助支出
A9: 煤炭企业利润收入 | C9: 国有企业办公共服务机构移交补助支出
A10: 有色冶金采掘企业利润收入 | C10: 国有企业退休人员社会化管理补助支出 | D10: 8
A11: 钢铁企业利润收入 | C11: 国有企业棚户区改造支出
A12: 化工企业利润收入 | C12: 国有企业改革成本支出
A13: 运输企业利润收入 | C13: 离休干部医药费补助支出
A14: 电子企业利润收入 | C14: 金融企业改革性支出
A15: 机械企业利润收入 | C15: 其他解决历史遗留问题及改革成本支出
A16: 投资服务企业利润收入 | C16: 国有企业资本金注入
A17: 纺织轻工企业利润收入 | C17: 国有经济结构调整支出
A18: 贸易企业利润收入 | C18: 公益性设施投资支出
A19: 建筑施工企业利润收入 | C19: 前瞻性战略性产业发展支出
A20: 房地产企业利润收入 | C20: 生态环境保护支出
A21: 建材企业利润收入 | C21: 支持科技进步支出
A22: 境外企业利润收入 | C22: 保障国家经济安全支出
A23: 对外合作企业利润收入 | C23: 金融企业资本性支出
A24: 医药企业利润收入 | C24: 其他国有企业资本金注入
A25: 农林牧渔企业利润收入 | C25: 国有企业政策性补贴(款)
A26: 邮政企业利润收入 | C26: 国有企业政策性补贴(项)
A27: 军工企业利润收入 | C27: 其他国有资本经营预算支出(款)
A28: 转制科研院所利润收入 | C28: 其他国有资本经营预算支出(项)
A29: 地质勘查企业利润收入
A30: 卫生体育福利企业利润收入
A31: 教育文化广播企业利润收入
A32: 科学研究企业利润收入
A33: 机关社团所属企业利润收入
A34: 金融企业利润收入
A35: 其他国有资本经营预算企业利润收入
A36: 股利、股息收入
A37: 国有控股公司股利、股息收入
A38: 国有参股公司股利、股息收入
A39: 金融企业股利、股息收入
A40: 其他国有资本经营预算企业股利、股息收入
A41: 产权转让收入
A42: 国有股权、股份转让收入
A43: 国有独资企业产权转让收入
A44: 金融企业产权转让收入
A45: 其他国有资本经营预算企业产权转让收入
A46: 清算收入
A47: 国有股权、股份清算收入
A48: 国有独资企业清算收入
A49: 其他国有资本经营预算企业清算收入
A50: 其他国有资本经营预算收入
A100: 本 年 收 入 合 计 | C100: 本 年 支 出 合 计 | D100: 8

Sheet J21
A1: 2024年度鄄城县国有资本经营预算收支决算分级表
A2: 决算21表
A3: 单位:万元
A4: 预算科目 | B4: 决算数合计 | C4: 省级 | D4: 地级 | E4: 其中:地级直属乡镇 | F4: 县级 | G4: 乡级 | H4: 预算科目 | I4: 决算数合计 | J4: 省级 | K4: 地级 | L4: 其中:地级直属乡镇 | M4: 县级 | N4: 乡级
A5: 利润收入 | H5: 解决历史遗留问题及改革成本支出 | I5: 8 | M5: 8
A6: 股利、股息收入 | H6: 国有企业资本金注入
A7: 产权转让收入 | H7: 国有企业政策性补贴
A8: 清算收入 | H8: 其他国有资本经营预算支出
A9: 其他国有资本经营预算收入
A41: 本 年 收 入 合 计 | H41: 本 年 支 出 合 计 | I41: 8 | M41: 8

Sheet J22
A1: 2024年度鄄城县国有资本经营预算收支及平衡情况表
A2: 决算22表
A3: 单位:万元
A4: 地 区 | B4: 收 支 部 分 | M4: 平 衡 部 分
B5: 收 入 部 分 | H5: 支 出 部 分 | M5: 收 入 部 分 | R5: 支 出 部 分 | W5: 年终结余
B6: 收入合计 | C6: 利润收入 | D6: 股利、股息收入 | E6: 产权转让收入 | F6: 清算收入 | G6: 其他国有资本经营预算收入 | H6: 支出合计 | I6: 解决历史遗留问题及改革成本支出 | J6: 国有企业资本金注入 | K6: 国有企业政策性补贴 | L6: 其他国有资本经营预算支出 | M6: 收入总计 | N6: 本年收入 | O6: 上级补助收入 | P6: 上年结余收入 | Q6: 省补助计划单列市收入 | R6: 支出总计 | S6: 本年支出 | T6: 上解上级支出 | U6: 计划单列市上解省支出 | V6: 调出资金
A7: =REPT(" ",6-6)&"鄄城县" -> 鄄城县 | H7: 8 | I7: 8 | M7: =SUM(N7:Q7) -> 35 | O7: 19 | P7: 16 | R7: 24 | S7: 8 | V7: 16 | W7: 11

Sheet sheet04
A9: 第四部分:补充资料

Sheet J23
A1: 2024年度鄄城县社会保险基金预算收支情况表
A2: 决算23表
A3: 单位:万元
A4: 项目 | B4: 合计 | C4: 企业职工基本养老保险基金 | D4: 城乡居民基本养老保险基金 | E4: 机关事业单位基本养老保险基金 | F4: 职工基本医疗保险(含生育保险)基金 | G4: 城乡居民基本医疗保险基金 | H4: 工伤保险基金 | I4: 失业保险基金
A6: 一、收入 | B6: 100,075 | D6: 43,566 | E6: 56,509
A7: 其中:社会保险费收入 | B7: 46,208 | D7: 8,197 | E7: 38,011
A8: 财政补贴收入 | B8: 49,695 | D8: 32,725 | E8: 16,970
A9: 利息收入 | B9: 464 | D9: 432 | E9: 32
A10: 委托投资收益 | B10: 2,098 | D10: 2,098
A11: 转移收入 | B11: 1,451 | D11: 111 | E11: 1,340
A12: 其他收入 | B12: 159 | D12: 3 | E12: 156
A13: 全国统筹调剂资金收入
A14: 二、支出 | B14: 94,801 | D14: 38,350 | E14: 56,451
A15: 其中:社会保险待遇支出 | B15: 94,476 | D15: 38,326 | E15: 56,150
A16: 转移支出 | B16: 136 | D16: 18 | E16: 118
A17: 其他支出 | B17: 189 | D17: 6 | E17: 183
A18: 全国统筹调剂资金支出
A19: 三、本年收支结余 | B19: 5,274 | D19: 5,216 | E19: 58
A20: 四、年末滚存结余 | B20: 105,546 | D20: 101,372 | E20: 4,174

Sheet J24
A1: 2024年度鄄城县地方政府债务余额情况表
A2: 决算24表
A3: 单位:万元
A4: 项目 | B4: 预算数 | C4: 决算数
A5: 上年末地方政府债务余额 | C5: 1,044,341
A6: 一般债务 | C6: 74,241
A7: 专项债务 | C7: 970,100
A8: 本年地方政府债务余额限额 | B8: 1,437,010
A9: 一般债务 | B9: 75,310
A10: 专项债务 | B10: 1,361,700
A11: 本年地方政府债务(转贷)收入 | C11: 340,535
A12: 一般债务 | C12: 7,630
A13: 专项债务 | C13: 332,905
A14: 本年地方政府债务还本支出 | C14: 203,890
A15: 一般债务 | C15: 7,690
A16: 专项债务 | C16: 196,200
A17: 年末地方政府债务余额 | C17: 1,252,986
A18: 一般债务 | C18: 74,181
A19: 专项债务 | C19: 1,178,805

Sheet J25
A1: 2024年度鄄城县脱贫县相关财政指标表
J2: 决算25表
J3: 单位:万元
A4: 地 区 | B4: 一般公共预算收入 | C4: 一般公共预算支出 | E4: 政府性基金预算收入 | F4: 政府性基金预算支出 | G4: 国有资本经营预算收入 | H4: 国有资本经营预算支出 | I4: 年末地方政府 一般债务余额 | J4: 年末地方政府 专项债务余额
D5: 其中：巩固脱贫攻坚成果衔接乡村振兴
A6: 合计 | B6: =B7 -> 0 | C6: 0 | D6: 0 | E6: 0 | F6: 0 | G6: 0 | H6: 0 | I6: 0 | J6: 0
A7: =REPT(" ",6-6)&"鄄城县" -> 鄄城县

Sheet J26
A1: 2024年度鄄城县乡镇财政收支决算表
A2: 决算26表
A3: 单位:万元
A4: 项 目 | B4: 决算数 | C4: 项 目 | D4: 决算数
A5: 一、一般公共预算收支决算 | C5: 待偿债再融资专项债券上年结余
A6: 收入总计 | B6: 97,382 | C6: 上年结余收入
A7: 一般公共预算收入 | B7: 46,389 | C7: 调入资金
A8: 上级补助收入 | B8: 50,993 | C8: 债务(转贷)收入
A9: 待偿债再融资一般债券上年结余 | C9: 动用超长期特别国债偿债备付金
A10: 上年结余收入 | C10: 支出总计
A11: 调入资金 | C11: 政府性基金预算支出
A12: 债务(转贷)收入 | C12: 上解上级支出
A13: 动用预算稳定调节基金 | C13: 调出资金
A14: 区域间转移性收入 | C14: 债务还本支出
A15: 支出总计 | B15: 97,382 | C15: 安排超长期特别国债偿债备付金
A16: 一般公共预算支出 | B16: 50,932 | C16: 待偿债再融资专项债券结余
A17: 上解上级支出 | B17: 46,450 | C17: 年终结余
A18: 调出资金 | C18: 三、国有资本经营预算收支决算
A19: 债务还本支出 | C19: 收入总计
A20: 补充预算周转金 | C20: 国有资本经营预算收入
A21: 安排预算稳定调节基金 | C21: 上级补助收入
A22: 区域间转移性支出 | C22: 上年结余收入
A23: 待偿债再融资一般债券结余 | C23: 支出总计
A24: 年终结余 | C24: 国有资本经营预算支出
A25: 二、政府性基金预算收支决算 | C25: 上解上级支出
A26: 收入总计 | C26: 调出资金
A27: 政府性基金预算收入 | C27: 年终结余
A28: 上级补助收入

Sheet J71
A1: 2024年度本级一般公共预算收支决算总表
A2: 决算01表
A3: 单位:万元
A4: 预算科目 | B4: 决算数 | C4: 预算科目 | D4: 决算数
A5: 一般公共预算收入 | B5: 181,621 | C5: 一般公共预算支出 | D5: 507,979
A6: 上级补助收入 | B6: 337,202 | C6: 补助下级支出
A7: 返还性收入 | B7: 12,578 | C7: 返还性支出
A8: 一般性转移支付收入 | B8: 309,604 | C8: 一般性转移支付支出
A9: 专项转移支付收入 | B9: 15,020 | C9: 专项转移支付支出
A10: 下级上解收入 | C10: 上解上级支出 | D10: 38,666
A11: 待偿债再融资一般债券上年结余
A12: 上年结余收入 | B12: 30,194
A13: 调入资金 | B13: 36,602 | C13: 调出资金
A14: 债务收入 | C14: 债务还本支出 | D14: 7,690
A15: 债务转贷收入 | B15: 7,630 | C15: 债务转贷支出
A16: 国债转贷收入 | C16: 补充预算周转金
A17: 国债转贷资金上年结余 | C17: 拨付国债转贷资金数
A18: 国债转贷转补助数 | C18: 国债转贷资金结余
A19: 动用预算稳定调节基金 | B19: 47,163 | C19: 安排预算稳定调节基金 | D19: 42,813
A20: 区域间转移性收入 | C20: 区域间转移性支出
A21: 省补助计划单列市收入 | C21: 省补助计划单列市支出
A22: 计划单列市上解省收入 | C22: 计划单列市上解省支出
C23: 待偿债再融资一般债券结余
C24: 年终结余 | D24: 43,264
C25: 减:结转下年的支出 | D25: 43,264
C26: 净结余
A85: 收 入 总 计 | B85: 640,412 | C85: 支 出 总 计 | D85: 640,412

Sheet J72
A1: 2024年度本级政府性基金预算收支决算总表
A2: 决算11表
A3: 单位:万元
A4: 预算科目 | B4: 预算数 | C4: 调整预算数 | D4: 决算数 | E4: 预算科目 | F4: 预算数 | G4: 调整预算数 | H4: 决算数
A5: 政府性基金收入 | B5: 310,880 | C5: 210,160 | D5: 210,160 | E5: 教育支出
A6: 专项债务对应项目专项收入 | C6: 4,619 | D6: 4,619 | E6: 科学技术支出
E7: 文化旅游体育与传媒支出 | F7: 7 | G7: 16 | H7: 4
E8: 社会保障和就业支出
E9: 卫生健康支出
E10: 节能环保支出
E11: 城乡社区支出 | F11: 291,336 | G11: 273,087 | H11: 236,948
E12: 农林水支出
E13: 交通运输支出
E14: 资源勘探工业信息等支出 | G14: 1,141
E15: 自然资源海洋气象等支出
E16: 住房保障支出
E17: 粮油物资储备支出
E18: 灾害防治及应急管理支出
E19: 其他支出 | F19: 1,269 | G19: 215,547 | H19: 111,924
E20: 债务付息支出 | F20: 32,708 | G20: 32,367 | H20: 32,367
E21: 债务发行费用支出
E22: 抗疫特别国债安排的支出
A23: 本 年 收 入 合 计 | B23: 310,880 | C23: 214,779 | D23: 214,779 | E23: 本 年 支 出 合 计 | F23: 325,320 | G23: 522,158 | H23: 381,243
A24: 上级补助收入 | D24: 37,923 | E24: 补助下级支出
A25: 下级上解收入 | E25: 上解上级支出 | H25: 266
A26: 待偿债再融资专项债券上年结余
A27: 上年结余收入 | D27: 115,632
A28: 调入资金 | D28: 23,972 | E28: 调出资金 | H28: 6,586
A29: 债务收入 | E29: 债务还本支出 | H29: 196,200
A30: 债务转贷收入 | D30: 332,905 | E30: 债务转贷支出
A31: 省补助计划单列市收入 | E31: 省补助计划单列市支出
A32: 计划单列市上解省收入 | E32: 计划单列市上解省支出
A33: 动用超长期特别国债偿债备付金 | E33: 安排超长期特别国债偿债备付金
E34: 待偿债再融资专项债券结余
E35: 年终结余 | H35: 140,916
A48: 收 入 总 计 | D48: 725,211 | E48: 支 出 总 计 | H48: 725,211

Sheet J73
A1: 2024年度本级国有资本经营预算收支决算总表
A2: 决算19表
A3: 单位:万元
A4: 预算科目 | B4: 预算数 | C4: 调整预算数 | D4: 决算数 | E4: 预算科目 | F4: 预算数 | G4: 调整预算数 | H4: 决算数
A5: 利润收入 | E5: 解决历史遗留问题及改革成本支出 | F5: 35 | G5: 19 | H5: 8
A6: 股利、股息收入 | E6: 国有企业资本金注入
A7: 产权转让收入 | E7: 国有企业政策性补贴
A8: 清算收入 | E8: 其他国有资本经营预算支出
A9: 其他国有资本经营预算收入
A16: 本 年 收 入 合 计 | E16: 本 年 支 出 合 计 | F16: 35 | G16: 19 | H16: 8
A17: 上级补助收入 | D17: 19 | E17: 补助下级支出
A18: 下级上解收入 | E18: 上解上级支出
A19: 上年结余收入 | D19: 16
A20: 省补助计划单列市收入 | E20: 省补助计划单列市支出
A21: 计划单列市上解省收入 | E21: 计划单列市上解省支出
E22: 调出资金 | H22: 16
E23: 年终结余 | H23: 11
A44: 收 入 总 计 | D44: 35 | E44: 支 出 总 计 | H44: 35

Sheet FIB
A4: 鄄城县
A5: 2024年度财政总决算分析表

Sheet FML
A1: 分 析 表 目 录
B3: 表号 | C3: 表名 | D3: 页码
B5: 分析01表 | C5: 一般公共预算收支构成分级情况表 | E5: 第一部分：一般公共预算
B6: 分析02表 | C6: 一般公共预算收支分级比重表
B7: 分析03表 | C7: 一般公共预算分级平衡情况表
B8: 分析04表 | C8: 一般公共预算收入完成情况表
B9: 分析05表 | C9: 一般公共预算收入分级情况表
B10: 分析06表 | C10: 税收收入占一般公共预算收入比重分级情况表
B11: 分析07表 | C11: 财政收入占地区生产总值比重情况表
B12: 分析08表 | C12: 地方财政总收入情况表
B13: 分析09表 | C13: 财力规模情况表
B14: 分析10表 | C14: 一般公共预算支出完成情况表
B15: 分析11表 | C15: 一般公共预算支出分级情况表
B16: 分析12表 | C16: 脱贫县一般公共预算收支指标表
B18: 分析13表 | C18: 政府性基金预算收入分级情况表 | E18: 第二部分：政府性基金预算
B19: 分析14表 | C19: 政府性基金预算支出分级情况表
B21: 分析15表 | C21: 财政收支总表 | E21: 第三部分：财政收支总况
B22: 分析16表 | C22: 财政经济运行指标表
B24: 分析17表 | C24: 历年各地区一般公共预算收入排序情况表 | E24: 第四部分：历年比较
B25: 分析18表 | C25: 历年各地区一般公共预算支出排序情况表
B26: 分析19表 | C26: 历年各地区人均一般公共预算收支排序情况表

Sheet sheet001
A9: 第一部分:一般公共预算

Sheet F01
A1: 2024年度鄄城县一般公共预算收支构成分级情况表
A2: 分析01表
A3: 单位：%
A4: 预 算 科 目 | B4: 合计 | C4: 省级 | D4: 地级 | E4: 县级 | F4: 乡级 | G4: 预 算 科 目 | H4: 合计 | I4: 省级 | J4: 地级 | K4: 县级 | L4: 乡级
A5: 一、税收收入 | E5: 49.5 | F5: 93.9 | G5: 一、一般公共服务支出 | K5: 6.3 | L5: 46.7
A6: 增值税 | E6: 10.2 | F6: 64.9 | G6: 二、外交支出
A7: 企业所得税 | E7: 4.2 | F7: 5.4 | G7: 三、国防支出 | K7: 0.0
A8: 个人所得税 | E8: 0.8 | F8: 0.9 | G8: 四、公共安全支出 | K8: 2.8
A9: 资源税 | E9: 1.5 | F9: 0.2 | G9: 五、教育支出 | K9: 27.9
A10: 城市维护建设税 | E10: 1.2 | F10: 5.1 | G10: 六、科学技术支出 | K10: 0.4
A11: 房产税 | E11: 3.0 | F11: 1.9 | G11: 七、文化旅游体育与传媒支出 | K11: 0.6
A12: 印花税 | E12: 0.8 | F12: 2.3 | G12: 八、社会保障和就业支出 | K12: 29.5 | L12: 6.3
A13: 城镇土地使用税 | E13: 7.3 | F13: 9.0 | G13: 九、卫生健康支出 | K13: 6.5 | L13: 4.4
A14: 土地增值税 | E14: 2.7 | F14: 0.2 | G14: 十、节能环保支出 | K14: 2.5
A15: 车船税 | E15: 2.4 | F15: 0.7 | G15: 十一、城乡社区支出 | K15: 1.2 | L15: 17.6
A16: 耕地占用税 | E16: 9.3 | F16: 0.9 | G16: 十二、农林水支出 | K16: 11.0 | L16: 19.1
A17: 契税 | E17: 6.1 | F17: 1.9 | G17: 十三、交通运输支出 | K17: 3.0
A18: 烟叶税 | G18: 十四、资源勘探工业信息等支出 | K18: 0.2 | L18: 0.4
A19: 环境保护税 | E19: 0.1 | F19: 0.5 | G19: 十五、商业服务业等支出 | K19: 0.0
A20: 其他税收收入 | G20: 十六、金融支出
A21: 二、非税收入 | E21: 50.5 | F21: 6.1 | G21: 十七、援助其他地区支出 | K21: 0.0
A22: 专项收入 | E22: 13.2 | F22: 5.5 | G22: 十八、自然资源海洋气象等支出 | K22: 1.0
A23: 行政事业性收费收入 | E23: 6.1 | F23: 0.6 | G23: 十九、住房保障支出 | K23: 5.4 | L23: 4.8
A24: 罚没收入 | E24: 6.1 | G24: 二十、粮油物资储备支出 | K24: 0.3
A25: 国有资本经营收入 | G25: 二十一、灾害防治及应急管理支出 | K25: 0.5 | L25: 0.7
A26: 国有资源(资产)有偿使用收入 | E26: 24.8 | G26: 二十二、其他支出
A27: 其他收入 | E27: 0.3 | G27: 二十三、债务付息支出 | K27: 0.5
G28: 二十四、债务发行费用支出
A41: 本 年 收 入 合 计 | B41: =IF(SUM(B5,B21)=0,0,100) -> 0.0 | C41: 0.0 | D41: 0.0 | E41: 100.0 | F41: 100.0 | G41: 本 年 支 出 合 计 | H41: 0.0 | I41: 0.0 | J41: 0.0 | K41: 100.0 | L41: 100.0

Sheet F02
A1: 2024年度鄄城县一般公共预算收支分级比重表
A2: 分析02表
A3: 单位：%
A4: 预 算 科 目 | B4: 合计 | C4: 省级 | D4: 地级 | E4: 县级 | F4: 乡级 | G4: 预 算 科 目 | H4: 合计 | I4: 省级 | J4: 地级 | K4: 县级 | L4: 乡级
A5: 一、税收收入 | B5: =IF(SUM(C5:F5)=0,0,100) -> 100.0 | E5: 60.6 | F5: 39.4 | G5: 一、一般公共服务支出 | H5: 100.0 | K5: 54.9 | L5: 45.1
A6: 增值税 | B6: 100.0 | E6: 31.4 | F6: 68.6 | G6: 二、外交支出 | H6: 0.0
A7: 企业所得税 | B7: 100.0 | E7: 69.2 | F7: 30.8 | G7: 三、国防支出 | H7: 100.0 | K7: 100.0
A8: 个人所得税 | B8: 100.0 | E8: 71.8 | F8: 28.2 | G8: 四、公共安全支出 | H8: 100.0 | K8: 100.0
A9: 资源税 | B9: 100.0 | E9: 94.6 | F9: 5.4 | G9: 五、教育支出 | H9: 100.0 | K9: 100.0
A10: 城市维护建设税 | B10: 100.0 | E10: 40.7 | F10: 59.3 | G10: 六、科学技术支出 | H10: 100.0 | K10: 100.0
A11: 房产税 | B11: 100.0 | E11: 81.8 | F11: 18.2 | G11: 七、文化旅游体育与传媒支出 | H11: 100.0 | K11: 100.0
A12: 印花税 | B12: 100.0 | E12: 49.2 | F12: 50.8 | G12: 八、社会保障和就业支出 | H12: 100.0 | K12: 97.7 | L12: 2.3
A13: 城镇土地使用税 | B13: 100.0 | E13: 70.3 | F13: 29.7 | G13: 九、卫生健康支出 | H13: 100.0 | K13: 93.1 | L13: 6.9
A14: 土地增值税 | B14: 100.0 | E14: 97.4 | F14: 2.6 | G14: 十、节能环保支出 | H14: 100.0 | K14: 100.0
A15: 车船税 | B15: 100.0 | E15: 91.5 | F15: 8.5 | G15: 十一、城乡社区支出 | H15: 100.0 | K15: 37.7 | L15: 62.3
A16: 耕地占用税 | B16: 100.0 | E16: 96.7 | F16: 3.3 | G16: 十二、农林水支出 | H16: 100.0 | K16: 83.7 | L16: 16.3
A17: 契税 | B17: 100.0 | E17: 90.4 | F17: 9.6 | G17: 十三、交通运输支出 | H17: 100.0 | K17: 100.0
A18: 烟叶税 | B18: 0.0 | G18: 十四、资源勘探工业信息等支出 | H18: 100.0 | K18: 82.4 | L18: 17.6
A19: 环境保护税 | B19: 100.0 | E19: 42.8 | F19: 57.2 | G19: 十五、商业服务业等支出 | H19: 100.0 | K19: 100.0
A20: 其他税收收入 | B20: 0.0 | G20: 十六、金融支出 | H20: 0.0
A21: 二、非税收入 | B21: 100.0 | E21: 96.0 | F21: 4.0 | G21: 十七、援助其他地区支出 | H21: 100.0 | K21: 100.0
A22: 专项收入 | B22: 100.0 | E22: 87.5 | F22: 12.5 | G22: 十八、自然资源海洋气象等支出 | H22: 100.0 | K22: 100.0
A23: 行政事业性收费收入 | B23: 100.0 | E23: 96.7 | F23: 3.3 | G23: 十九、住房保障支出 | H23: 100.0 | K23: 90.9 | L23: 9.1
A24: 罚没收入 | B24: 100.0 | E24: 100.0 | G24: 二十、粮油物资储备支出 | H24: 100.0 | K24: 100.0
A25: 国有资本经营收入 | B25: 0.0 | G25: 二十一、灾害防治及应急管理支出 | H25: 100.0 | K25: 87.1 | L25: 12.9
A26: 国有资源(资产)有偿使用收入 | B26: 100.0 | E26: 100.0 | G26: 二十二、其他支出 | H26: 0.0
A27: 其他收入 | B27: 100.0 | E27: 100.0 | G27: 二十三、债务付息支出 | H27: 100.0 | K27: 100.0
G28: 二十四、债务发行费用支出 | H28: 0.0
A41: 本 年 收 入 合 计 | B41: 100.0 | E41: 74.5 | F41: 25.5 | G41: 本 年 支 出 合 计 | H41: 100.0 | K41: 90.0 | L41: 10.0

Sheet F03
A1: 2024年度鄄城县一般公共预算分级平衡情况表
J2: 分析03表
J3: 单位:万元
A4: 科目 | B4: 合计 | C4: 省级 | D4: 地级 | E4: 县级 | F4: 科目 | G4: 合计 | H4: 省级 | I4: 地级 | J4: 县级
A5: 本年收入合计 | B5: =SUM(C5:E5) -> 181,621 | E5: 181,621 | F5: 本年支出合计 | G5: 507,979 | J5: 507,979
A6: 上级补助收入 | B6: 337,202 | E6: 337,202 | F6: 上解上级支出 | G6: 38,666 | J6: 38,666
A7: 返还性收入 | B7: 12,578 | E7: 12,578 | F7: 体制上解支出 | G7: 28,613 | J7: 28,613
A8: 一般性转移支付收入 | B8: 309,604 | E8: 309,604 | F8: 专项上解支出 | G8: 10,053 | J8: 10,053
A9: 专项转移支付收入 | B9: 15,020 | E9: 15,020
A10: 待偿债再融资一般债券上年结余 | B10: 0
A11: 上年结余收入 | B11: 30,194 | E11: 30,194
A12: 调入资金 | B12: 36,602 | E12: 36,602 | F12: 调出资金 | G12: 0
A13: 债务(转贷)收入 | B13: -60 | E13: -60 | F13: 债务还本支出 | G13: 7,690 | J13: 7,690
F14: 补充预算周转金 | G14: 0
A15: 国债转贷收入、上年结余及转补助数 | B15: 0 | F15: 国债转贷拨付数及年终结余 | G15: 0
A16: 动用预算稳定调节基金 | B16: 47,163 | E16: 47,163 | F16: 安排预算稳定调节基金 | G16: 42,813 | J16: 42,813
A17: 区域间转移性收入 | B17: 0 | F17: 区域间转移性支出 | G17: 0
A18: 省补助计划单列市收入 | B18: 0 | F18: 计划单列市上解省支出 | G18: 0
F19: 待偿债再融资一般债券结余 | G19: 0
F20: 年终结余 | G20: 43,264 | J20: 43,264
F21: 减：结转下年的支出 | G21: 43,264 | J21: 43,264
F22: 净结余 | G22: 0
A30: 收 入 总 计 | B30: 640,412 | E30: 640,412 | F30: 支 出 总 计 | G30: 640,412 | J30: 640,412

Sheet F04
A1: 2024年度鄄城县一般公共预算收入完成情况表
A2: 分析04表
A3: 单位:万元、%
A4: 地 区 | B4: 预算数 | D4: 调整预算数 | F4: 决算数 | G4: 决算数为预算数的% | I4: 决算数为调整预算数的% | K4: 上年决算数 | L4: 比上年增加 | M4: 比上年增长%
B5: 各级上报的预算数 | C5: 直接汇总的预算数 | D5: 各级上报的调整预算数 | E5: 直接汇总的调整预算数 | G5: 占各级上报的预算数% | H5: 占直接汇总的预算数% | I5: 占各级上报的调整预算数% | J5: 占直接汇总的调整预算数%
A6: =REPT(" ",6-6)&"鄄城县" -> 鄄城县 | B6: 187,488 | C6: 187,488 | D6: 181,355 | E6: 181,355 | F6: 181,621 | G6: =IF(B6=0,0,F6/B6*100) -> 96.9 | H6: =IF(C6=0,0,F6/C6*100) -> 96.9 | I6: =IF(D6=0,0,F6/D6*100) -> 100.1 | J6: =IF(E6=0,0,F6/E6*100) -> 100.1 | K6: 175,222 | L6: =F6-K6 -> 6,399 | M6: =IF(K6=0,0,F6/K6*100-100) -> 3.7

Sheet F05
A1: 2024年度鄄城县一般公共预算收入分级情况表
A2: 分析05表
A3: 单位:万元、%
A4: 地 区 | B4: 收入额 | G4: 分级比重
B5: 合计 | C5: 省级 | D5: 地级 | E5: 县级 | F5: 乡级 | G5: 省级 | H5: 地级 | I5: 县级 | J5: 乡级
A6: =REPT(" ",6-6)&"鄄城县" -> 鄄城县 | B6: =C6+D6+E6+F6 -> 181,621 | E6: 135,232 | F6: 46,389 | G6: =IF(B6=0,0,C6/B6*100) -> 0.0 | H6: =IF(B6=0,0,D6/B6*100) -> 0.0 | I6: =IF(B6=0,0,E6/B6*100) -> 74.5 | J6: =IF(B6=0,0,F6/B6*100) -> 25.5

Sheet F06
A1: 2024年度鄄城县税收收入占一般公共预算收入比重分级情况表
A2: 分析06表
A3: 单位:万元、%
A4: 地 区 | B4: 税收收入 | G4: 一般公共预算收入 | L4: 税收收入占一般公共预算收入比重
B5: 合计 | C5: 省级 | D5: 地级 | E5: 县级 | F5: 乡级 | G5: 合计 | H5: 省级 | I5: 地级 | J5: 县级 | K5: 乡级 | L5: 合计 | M5: 省级 | N5: 地级 | O5: 县级 | P5: 乡级
A6: =REPT(" ",6-6)&"鄄城县" -> 鄄城县 | B6: =C6+D6+E6+F6 -> 110,450 | E6: 66,879 | F6: 43,571 | G6: 181,621 | J6: 135,232 | K6: 46,389 | L6: =IF(G6=0,0,B6/G6*100) -> 60.8 | M6: 0.0 | N6: 0.0 | O6: 49.5 | P6: 93.9

Sheet F07
A1: 2024年度鄄城县财政收入占地区生产总值比重情况表
A2: 分析07表
A3: 单位:万元、%
A4: 地 区 | B4: 地方财政总收入 | C4: 地方一般公共预算收入 | D4: 地区生产总值 | E4: 地方财政总收入占地区生产总值比重 | F4: 地方一般公共预算收入占地区生产总值比重
A5: =REPT(" ",6-6)&"鄄城县" -> 鄄城县 | B5: 242,972 | C5: 181,621 | D5: 3,326,182 | E5: =IF(D5=0,0,B5/D5*100) -> 7.3 | F5: =IF(D5=0,0,C5/D5*100) -> 5.5

Sheet F08
A1: 2024年度鄄城县地方财政总收入情况表
A2: 分析08表
A3: 单位:万元
A4: 地 区 | B4: 地方财政总收入 | C4: 地方一般公共预算收入 | D4: 上划中央国内增值税 | E4: 上划中央国内消费税 | F4: 上划中央企业所得税 | G4: 上划中央个人所得税
A5: =REPT(" ",6-6)&"鄄城县" -> 鄄城县 | B5: =SUM(C5:G5) -> 242,972 | C5: 181,621 | D5: 46,852 | E5: 186 | F5: 12,181 | G5: 2,132

Sheet F09
A1: 2024年度鄄城县财力规模情况表
A2: 分析09表
A3: 单位:万元
A4: 地 区 | B4: 财力规模 | C4: 一般公共预算收入 | D4: 所得税基数返还 | E4: 成品油税费改革税收返还 | F4: 增值税税收返还 | G4: 消费税税收返还 | H4: 增值税“五五分享”税收返还 | I4: 其他返还 | J4: 体制补助 | K4: 均衡性转移支付 | L4: 县级基本财力保障机制奖补 | M4: 结算补助 | N4: 资源枯竭型城市转移支付补助 | O4: 企业事业单位划转 | P4: 产粮(油)大县奖励资金 | Q4: 重点生态功能区转移支付 | R4: 固定数额补助 | S4: 革命老区转移支付 | T4: 民族地区转移支付 | U4: 边境地区转移支付 | V4: 巩固脱贫攻坚成果衔接乡村振兴转移支付 | W4: 一般公共服务共同财政事权转移支付 | X4: 外交共同财政事权转移支付 | Y4: 国防共同财政事权转移支付 | Z4: 公共安全共同财政事权转移支付 | AA4: 教育共同财政事权转移支付 | AB4: 科学技术共同财政事权转移支付 | AC4: 文化旅游体育与传媒共同财政事权转移支付 | AD4: 社会保障和就业共同财政事权转移支付 | AE4: 医疗卫生共同财政事权转移支付 | AF4: 节能环保共同财政事权转移支付 | AG4: 城乡社区共同财政事权转移支付 | AH4: 农林水共同财政事权转移支付 | AI4: 交通运输共同财政事权转移支付 | AJ4: 资源勘探工业信息等共同财政事权转移支付 | AK4: 商业服务业等共同财政事权转移支付 | AL4: 金融共同财政事权转移支付 | AM4: 自然资源海洋气象等共同财政事权转移支付 | AN4: 住房保障共同财政事权转移支付 | AO4: 粮油物资储备共同财政事权转移支付 | AP4: 灾害防治及应急管理共同财政事权转移支付 | AQ4: 其他共同财政事权转移支付 | AR4: 其他一般性转移支付收入 | AS4: 体制上解支出 | AT4: 专项上解支出
A5: =REPT(" ",6-6)&"鄄城县" -> 鄄城县 | B5: =SUM(C5:AR5)-SUM(AS5:AT5) -> 465,137 | C5: 181,621 | D5: 482 | E5: 410 | F5: 5,303 | G5: 17 | H5: 6,222 | I5: 144 | K5: 31,071 | L5: 107,652 | M5: 2,276 | O5: 102 | P5: 3,574 | R5: 13,982 | S5: 3,503 | V5: 13,297 | Z5: 1,250 | AA5: 19,048 | AB5: 25 | AC5: 341 | AD5: 58,121 | AE5: 10,901 | AF5: 146 | AH5: 33,410 | AI5: 1,779 | AM5: 49 | AN5: 392 | AO5: 338 | AP5: 44 | AR5: 8,303 | AS5: 28,613 | AT5: 10,053

Sheet F10
A1: 2024年度鄄城县一般公共预算支出完成情况表
A2: 分析10表
A3: 单位:万元、%
A4: 地 区 | B4: 预算数 | D4: 调整预算数 | F4: 决算数 | G4: 决算数为预算数的% | I4: 决算数为调整预算数的% | K4: 上年决算数 | L4: 比上年增加 | M4: 比上年增长%
B5: 各级上报的预算数 | C5: 直接汇总的预算数 | D5: 各级上报的调整预算数 | E5: 直接汇总的调整预算数 | G5: 占各级上报的预算数% | H5: 占直接汇总的预算数% | I5: 占各级上报的调整预算数% | J5: 占直接汇总的调整预算数%
A6: =REPT(" ",6-6)&"鄄城县" -> 鄄城县 | B6: 533,000 | C6: 533,000 | D6: 551,243 | E6: 551,243 | F6: 507,979 | G6: =IF(B6=0,0,F6/B6*100) -> 95.3 | H6: =IF(C6=0,0,F6/C6*100) -> 95.3 | I6: =IF(D6=0,0,F6/D6*100) -> 92.2 | J6: =IF(E6=0,0,F6/E6*100) -> 92.2 | K6: 568,144 | L6: =F6-K6 -> -60,165 | M6: =IF(K6=0,0,F6/K6*100-100) -> -10.6

Sheet F11
A1: 2024年度鄄城县一般公共预算支出分级情况表
A2: 分析11表
A3: 单位:万元、%
A4: 地 区 | B4: 支出额 | G4: 分级比重
B5: 合计 | C5: 省级 | D5: 地级 | E5: 县级 | F5: 乡级 | G5: 省级 | H5: 地级 | I5: 县级 | J5: 乡级
A6: =REPT(" ",6-6)&"鄄城县" -> 鄄城县 | B6: =C6+D6+E6+F6 -> 507,979 | E6: 457,047 | F6: 50,932 | G6: =IF(B6=0,0,C6/B6*100) -> 0.0 | H6: =IF(B6=0,0,D6/B6*100) -> 0.0 | I6: =IF(B6=0,0,E6/B6*100) -> 90.0 | J6: =IF(SUM(G6:I6)=0,0,(100-G6-H6-I6)) -> 10.0

Sheet F12
A1: 2024年度鄄城县脱贫县一般公共预算收支指标表
J2: 分析12表
J3: 单位：万元、%
A4: 地 区 | B4: 已脱贫 贫困县个数 | C4: 已脱贫贫困县指标 | G4: 所在省(区、市)区县指标
C5: 人均一般公共预算收入 | D5: 人均一般公共预算支出 | E5: 一般公共预算收入占支出比重% | F5: 一般性转移支付收入占支出比重% | G5: 人均一般公共预算收入 | H5: 人均一般公共预算支出 | I5: 一般公共预算收入占支出比重% | J5: 一般性转移支付收入占支出比重%
A6: 合计 | B6: =B7 -> 0 | G6: 2,505 | H6: 7,007 | I6: 35.8 | J6: 60.9
A7: =REPT(" ",6-6)&"鄄城县" -> 鄄城县 | C7: =IF(N7+O7=0,0,K7/((N7+O7)/2)) ->  | D7: =IF(N7+O7=0,0,L7/((N7+O7)/2)) ->  | E7: =IF(L7=0,0,K7/L7*100) ->  | F7: =IF(L7=0,0,M7/L7*100) ->  | G7: =IF(S7+T7=0,0,P7/((S7+T7)/2)) -> 2,505 | H7: =IF(S7+T7=0,0,Q7/((S7+T7)/2)) -> 7,007 | I7: =IF(Q7=0,0,P7/Q7*100) -> 35.8 | J7: =IF(Q7=0,0,R7/Q7*100) -> 60.9 | K7: &DTF(ZJS001FJNB,,L01!C5:一般公共预算收入—决算数,FWBM=(&BBDW);国家扶贫重点县信息=(是#1)) | L7: &DTF(ZJS001FJNB,,L02!C5:一般公共预算支出—决算数,FWBM=(&BBDW);国家扶贫重点县信息=(是#1)) | M7: &DTF(ZJS001FJNB,,L05!B14:一般性转移支付收入—决 算 数,FWBM=(&BBDW);国家扶贫重点县信息=(是#1)) | N7: &DTF(ZJS001FJNB,,L23!B90:总人口万人—数额,FWBM=(&BBDW);国家扶贫重点县信息=(是#1)|(已脱贫#3)) | O7: &DTF(ZJS001FJNB,DQJ[N,-1{0}],L23!B90:总人口万人—数额,FWBM=(&BBDW);国家扶贫重点县信息=(是#1)|(已脱贫#3)) | P7: 181,621 | Q7: 507,979 | R7: 309,604 | S7: 72 | T7: 73

Sheet sheet002
A9: 第二部分:政府性基金预算

Sheet F13
A1: 2024年度鄄城县政府性基金预算收入分级情况表
A2: 分析13表
A3: 单位:万元、%
A4: 地 区 | B4: 收入额 | G4: 分级比重
B5: 合计 | C5: 省级 | D5: 地级 | E5: 县级 | F5: 乡级 | G5: 省级 | H5: 地级 | I5: 县级 | J5: 乡级
A6: =REPT(" ",6-6)&"鄄城县" -> 鄄城县 | B6: =SUM(C6:F6) -> 214,779 | E6: 214,779 | G6: =IF(B6=0,0,C6/B6*100) -> 0.0 | H6: =IF(B6=0,0,D6/B6*100) -> 0.0 | I6: =IF(B6=0,0,E6/B6*100) -> 100.0 | J6: =IF(B6=0,0,F6/B6*100) -> 0.0

Sheet F14
A1: 2024年度鄄城县政府性基金预算支出分级情况表
A2: 分析14表
A3: 单位:万元、%
A4: 地 区 | B4: 支出额 | G4: 分级比重
B5: 合计 | C5: 省级 | D5: 地级 | E5: 县级 | F5: 乡级 | G5: 省级 | H5: 地级 | I5: 县级 | J5: 乡级
A6: =REPT(" ",6-6)&"鄄城县" -> 鄄城县 | B6: =SUM(C6:F6) -> 381,243 | E6: 381,243 | G6: =IF(B6=0,0,C6/B6*100) -> 0.0 | H6: =IF(B6=0,0,D6/B6*100) -> 0.0 | I6: =IF(B6=0,0,E6/B6*100) -> 100.0 | J6: =IF(B6=0,0,F6/B6*100) -> 0.0

Sheet sheet003
A9: 第三部分:政府性收支总况

Sheet F15
A1: 2024年度鄄城县财政收支总表
A2: 分析15表
A3: 单位:万元、%
A4: 项目 | B4: 金额 | C4: 项目 | D4: 金额
A5: 一、一般公共预算收入 | B5: 181,621 | C5: 一、一般公共预算支出 | D5: 507,979
A6: 二、政府性基金预算收入 | B6: 214,779 | C6: 二、政府性基金预算支出 | D6: 381,243
A7: 三、国有资本经营预算收入 | C7: 三、国有资本经营预算支出 | D7: 8
A8: 四、扣除重复计算部分 | C8: 四、扣除重复计算部分
A9: 本年收入小计 | B9: =SUM(B5:B7)-B8 -> 396,400 | C9: 本年支出小计 | D9: 889,230
A10: 上级补助收入 | B10: =SUM(B11:B13) -> 375,144 | C10: 上解上级支出 | D10: 38,932
A11: 一般公共预算补助收入 | B11: 337,202 | C11: 一般公共预算上解支出 | D11: 38,666
A12: 政府性基金预算补助收入 | B12: 37,923 | C12: 政府性基金预算上解支出 | D12: 266
A13: 国有资本经营预算上级补助收入 | B13: 19 | C13: 国有资本经营预算上解支出
A14: 省补助计划单列市收入 | C14: 计划单列市上解省支出
A15: 债务(转贷)收入 | B15: 340,535 | C15: 债务还本支出 | D15: 203,890
A16: 区域间转移性收入 | C16: 区域间转移性支出
A17: 本 年 收 入 合 计 | B17: =SUM(B9,B10,B14,B15,B16) -> 1,112,079 | C17: 本 年 支 出 合 计 | D17: 1,132,052
A18: 动用预算稳定调节基金 | B18: 47,163 | C18: 安排预算稳定调节基金 | D18: 42,813
A19: 调入资金 | B19: 53,972 | C19: 补充预算周转金
A20: 国债转贷收入、上年结余及转补助数 | C20: 国债转贷拨付数及年终结余
A21: 动用偿债备付金 | C21: 偿债备付金
A22: 待偿债再融资债券上年结余 | B22: =B23+B24 -> 0 | C22: 待偿债再融资债券结余 | D22: 0
A23: 待偿债再融资一般债券上年结余 | C23: 待偿债再融资一般债券结余
A24: 待偿债再融资专项债券上年结余 | C24: 待偿债再融资专项债券结余
A25: 上年结余收入 | B25: 145,842 | C25: 年终结余 | D25: =B29-D17-D18-D19-D20-D21-D22 -> 184,191
A26: 一般公共预算上年结余收入 | B26: 30,194 | C26: 一般公共预算年终结余 | D26: 43,264
A27: 政府性基金上年结余收入 | B27: 115,632 | C27: 政府性基金预算年终结余 | D27: 140,916
A28: 国有资本经营预算上年结余收入 | B28: 16 | C28: 国有资本经营预算年终结余 | D28: 11
A29: 收 入 总 计 | B29: =SUM(B17:B22,B25) -> 1,359,056 | C29: 支 出 总 计 | D29: 1,359,056

Sheet F16
A1: 2024年度鄄城县财政经济运行指标表
A2: 分析16表
A3: 单位：%
A4: 指标名称 | B4: 指标数值 | C4: 说明
A5: 一般公共预算收入占地区生产总值比重 | B5: 5.5
A6: 财政收入占地区生产总值比重 | B6: 11.9 | C6: (一般公共预算收入+政府性基金预算收入+国有资本经营预算收入-收入中重复计算部分)/地区生产总值
A7: 税收收入占一般公共预算收入比重 | B7: 60.8
A8: 一般公共预算收入占政府性收入比重 | B8: 45.8
A9: 地区人均财力(元/人) | B9: 6460.2 | C9: 地区财力/地区总人口
